{"text_format":"1","workbook":"xlsx","n_sheets":22,"sheets":["Cover Page","Contents","Facility Info","Operational Data","Operational Summary","Perf. Form 1","Energy Form 1","Permit Compliance","Improvements","Public Liasion","Residue Quality ","Water","Air (periodic)","Air (CEMS)","HCl","SO2","NOx","TOC","Particulates","CO 0.5hourly","CO 95% 10 min","NH3"],"not_rendered":{"charts":8,"images":3,"macros":1,"external_links":0,"defined_names":22,"comments":0,"pivot_tables":0},"unopened":[],"bounds":{"document_bytes":16777216,"sheet_cells":100000,"rows_first":2000,"rows_last":500,"rows_between":2000,"halvings":0,"cell_chars":16384,"cell_head_chars":4096},"cells_cut":0,"cells_raw":0,"read":"whole","date_system":"1900"}

{"sheet":"Cover Page","index":0,"n_rows":58,"n_cols":14,"rows_kept":58,"cut":false,"hidden":false,"merged":[[13,13,18,15],[34,1,34,8],[0,3,5,6],[7,1,23,8],[28,1,28,8],[30,1,30,8],[32,1,32,8],[48,2,48,3],[48,6,48,8],[52,2,52,3],[36,1,36,8],[40,2,40,8],[42,2,42,4],[44,2,44,4],[46,2,46,3],[46,6,46,8]]}
[null,null,null,"Add company logo"]
[null,null,null,null,null,null,null,null,null,null,null,null,null,"Version 20.6 "]
[]
[]
[]
[]
[]
[null,"Add photo"]
[]
[]
[]
[]
[null,null,null,null,null,null,null,null,null,null,null,null,null,"Notes:"]
[null,null,null,null,null,null,null,null,null,null,null,null,null,"This template may require adjustments by individual operators to meet specific reporting requirements as defined in the site Permit(s)"]
[]
[]
[]
[]
[]
[]
[]
[]
[]
[]
[]
[]
[]
[]
[null,"Annual Performance Report 2022"]
[]
[null,"Permit EPR/NP3739PD"]
[]
[null,"The Coventry And Solihull Waste Disposal Company Ltd"]
[]
[null,"CSWDC"]
[]
[null,"CSWDC"]
[]
[null,"Year:",2021]
[]
[null,"Address:","Bar Road, Coventry, CV3 4AN"]
[]
[null,"Tel: ","(0)2476507400"]
[]
[null,"Email: ","info@cswdc.co.uk"]
[]
[null,"Prepared by:","M Schilling",null,null,"Position:","EH&S Advisor"]
[]
[null,"Approved by:","E Price",null,null,"Position:","CP Manager"]
[]
[null,"Version:",1]
[]
[null,"Issue Date:","2022-01-31"]
[]
[]
[]
[]
[null,null,null,null,null,null,null,null," "]

{"sheet":"Contents","index":1,"n_rows":53,"n_cols":11,"rows_kept":53,"cut":false,"hidden":false,"merged":[[4,10,7,14],[8,1,8,6],[3,1,3,6],[4,1,4,6],[5,1,5,6],[6,1,6,6],[7,1,7,6],[20,1,20,6],[9,1,9,6],[10,1,10,6],[11,1,11,6],[12,1,12,6],[13,1,13,6],[14,1,14,6],[15,1,15,6],[16,1,16,6],[17,1,17,6],[18,1,18,6],[19,1,19,6],[35,1,35,6],[21,1,21,6],[22,1,22,6],[23,1,23,6],[26,1,26,6],[27,1,27,6],[28,1,28,6],[29,1,29,6],[30,1,30,6],[31,1,31,6],[34,1,34,6],[43,0,46,9],[36,1,36,6],[37,1,37,6],[38,1,38,6],[39,1,39,6],[40,1,40,6],[41,1,41,6]]}
[{"$f":"+'Cover Page'!$B$29","v":"Annual Performance Report 2022"},null,null,null,{"$f":"+'Cover Page'!$B$33","v":"The Coventry And Solihull Waste Disposal Company Ltd"}]
[]
["Contents",null,null,null,null,null,null,null,null,null,"Notes:"]
["Section","Subject",null,null,null,null,null,"Page ",null,null,"Section references and Page nos. to be inserted"]
[null,"Facility Information",null,null,null,null,null,null,null,null,"Sections and Subjects may require adjustment by individual operators to meet specific reporting requirements as defined in the sites Permit(s)"]
[null,"Operational Summary"]
[null,"Operational Data"]
[null,"Performance Form 1"]
[null,"Energy Form 1"]
[null,"Permit Compliance"]
[null,"Improvements"]
[null,"Public Liasion"]
[null,"Residue Quality - Optional"]
[null,"Emissions to Water"]
[null,"Emissions to Air (periodically monitored)"]
[null,"Emissions to Air (continuously monitored)"]
[null,"Hydrogen Chloride emissions"]
[null,"Sulphur Dioxdie emsissions"]
[null,"Oxides of Notrigen emissions"]
[null,"Total Organic Carbon emissions"]
[null,"Particulate Matter emissions"]
[null,"Carbon Monoxide emissions"]
[null,"Ammonia emissions"]
[]
[]
["Version Control"]
["Section","Information",null,null,null,null,null,"Date"]
[null,"M Schilling - Data entry and compilation of report for submission to EA",null,null,null,null,null,"2022-01-31"]
[null,"Annual Performance Report 2022"]
[]
[]
[]
[]
["Distribution"]
["Copy","Name, Role",null,null,null,null,null,"No."]
[]
[]
[]
[]
[]
[]
[]
[]
["This report is required under the Industrial Emissions Directive’s Article 55(2) requirements on reporting and public information on waste incineration plants and co-incineration plants, which require the operator to produce an annual report on the functioning and monitoring of the plant and make it available to the public. "]
[]
[]
[]
[]
[]
[]
[]
[]
[null,null,"2022-01-31"]

{"sheet":"Facility Info","index":2,"n_rows":22,"n_cols":11,"rows_kept":22,"cut":false,"hidden":false,"merged":[[4,0,17,8],[21,0,53,8],[4,10,13,13],[21,10,30,13]]}
[{"$f":"+'Cover Page'!$B$29","v":"Annual Performance Report 2022"},null,null,null,{"$f":"+'Cover Page'!$B$33","v":"The Coventry And Solihull Waste Disposal Company Ltd"}]
[]
["Plant Description and Design",null,null,null,null,null,null,null,null,null,"Notes:"]
[]
["The Waste to Energy plant, which is located at Bar Road in Coventry, processes Municipal Household waste arising in the City of Coventry and the neighbouring borough of Solihull. Municipal household waste from other nearby local authorities is also processed at the plant. \n\nThe plant is operated by The Coventry and Solihull Waste Disposal Company Ltd.    The main activity at the installation is thermal treatment of municipal waste and recovery of energy, in the form of heat which is converted to electricity for export to the grid. The installation also has the capability to export heat in the form of either High or Low Pressure steam to a district heating scheme operated by Engie UK. A limited amount of hazardous waste, containing less than 1% halogenated organic substances (as chlorine), is also burned with the municipal waste.\n \nThe installation includes waste receipt and storage, steam generation boilers, abatement of the exhaust gas, on-site storage of residues and all systems for controlling and monitoring combustion operation. The steam produced is used to drive 2 steam turbine driven generators.\n\nThe plant design is capable of processing approximately 315,000 tonnes of waste per annum/36 tonnes per hour in three combustion units (12 tonne per unit). The heat produced is used to generate 17.7MW of electricity and up to 16MW heat energy. \n\nRefuse collection vehicles enter the reception hall and deposit their waste into a storage bunker. The material is then loaded by crane into each of the combustion units via feed hoppers from the storage bunker. After entering the combustion chamber via the refuse feed ram the material is allowed to fall onto the grate in a controlled manner. The moving grate mechanisms are used to agitate the waste as it progresses down to the ash discharge. \n \nAs the waste moves along, pre-heated primary air is introduced from beneath the grate enabling the waste to go through a series of drying and burning areas. Secondary air is introduced from above the grate for combustion control.  Auxiliary gas fired burners are located in the combustion chamber both to heat it up on start-up and to maintain the final gas temperature if necessary. The hot gases are maintained at a minimum temperature of 850C for 2 seconds in the combustion chamber before passing to the boiler, economiser and abatement plant. Each combustion unit is equipped with a 3-bank water tube boiler, raising steam at 17 bar and 208C.  Economisers are fitted downstream of each combustion unit to pre-heat the incoming feed water. \n\nCombustion is controlled with the use of an infrared imaging computer system, which uses fuzzy logic systems to control various parameters of the plant, ensuring improved efficiency and emission performance when compared to fully manual control.\n \nEach combustion unit is provided with its own gas cleaning and monitoring equipment. Gas cleaning comprises activated carbon injection, then dry scrubbing with hydrated lime. The gases pass through bag filters to remove particulates prior to discharge to atmosphere via a single 92m stack. NOx control is achieved by Selective Non Catalytic Reduction (SNCR) using ammonium hydroxide injection. \n \nEmissions from the stack are continuously monitored for particulates, carbon monoxide (CO), sulphur dioxide (SO2), hydrogen chloride (HCl), oxygen (O2), nitrogen oxides (NOx) and volatile organic compounds (VOC). \n\nThere is no discharge of process liquids to controlled waters. Uncontaminated surface and roof waters are discharged to the surface water drainage system, via penstock equipped interceptors. All process waste waters are discharged to foul sewer and these are treated at Finham Sewage Treatment Works, which is operated by Severn Trent Water.\n\nBottom ash from the combustion unit grate is quenched with water. The ferrous fraction from the bottom ash is then removed by magnetic separation. Both fractions are then conveyed to individual concrete storage bunkers prior to removal for reprocessing into aggregates or for recycling back into the steel industry. \nAir Pollution Control Residues (APCR) from the bag filters are collected continuously and stored in an enclosed silo prior to removal from site for disposal. \n\n",null,null,null,null,null,null,null,null,null,"Include summary of plant design, design capacity, no. of combustion lines, electrical and heat capacity and any other general information that descibes the facility, its location and purpose "]
[]
[]
[]
[]
[]
[]
[]
[]
[]
[]
[]
[]
[]
[]
["Summary of Operational Processes and Procedures"]
[]
["The plant consists of three separate combustion units that process up to a maximum of 12 tonnes of waste per hour.\nThere are two steam turbine driven electrical generating sets on the plant which convert the heat energy recovered from the combustion process into electricity. The generating sets are designated as G1 and G2. G1 has a capacity of 12.9MW and G2 a capacity of 4.8 MW. The process energy requirements are taken from the electricity generated and the surplus is exported to the grid. The plant also has the capacity to export heat, in the form of high pressure and low pressure steam.\nThe following table categorises the types and permitted maximum amounts of wastes processed.\n\nEWC Code Description               Amount\n19 12 01 paper and cardboard (confidential waste separately collected)  13%\n03 01 04 sawdust, shavings, cuttings, wood, particle board and veneer containing hazardous substances\n19 12 12 other wastes (including mixtures of materials) from mechanical treatment of wastes other than those mentioned in 19 12 11 \n20 01 01 paper and cardboard \n20 01 08 biodegradable kitchen waste \n20 02 01 biodegradable waste \n20 03 01 mixed municipal waste  84%\n20 03 02 waste from markets \n20 03 07 bulky waste \n20 03 99 municipal waste not otherwise specified \n02 03 04 Wastes unsuitable for consumption or processing \n19 12 08\n20 01 11 Textiles other \n13 07 01* fuel oil and diesel 1%\n13 08 99* wastes not otherwise specified \n15 02 02* absorbents, filter materials (including oil filters not otherwise specified), wiping cloths, protective clothing contaminated by dangerous substances \n15 02 03 absorbents, filter materials, wiping cloths and protective clothing other than those mentioned in 15 02 02 \n16 07 08* waste containing oil \n19 12 10 Combustible waste (refuse derived fuel)   1%\n19 01 99 Wastes not otherwise specified   1%\n18 01 04 \n18 01 06 \n18 01 07 \n18 01 09  Healthcare hazardous waste ",null,null,null,null,null,null,null,null,null,"Include summary of key processes and procedures such as (but not limited to); waste reception, control rooms, grate, bed and bolier, energy & heat  generation, cooling systems, residue management, emission controls, health and safety systems, maintenance"]

{"sheet":"Operational Data","index":3,"n_rows":65,"n_cols":11,"rows_kept":65,"cut":false,"hidden":false,"merged":[[3,1,3,2],[7,1,19,1],[23,1,26,1],[28,1,29,1],[52,0,56,0],[5,10,6,10],[7,10,18,10],[33,1,38,1],[30,2,30,5],[30,6,30,7]]}
[{"$f":"+'Cover Page'!$B$29","v":"Annual Performance Report 2022"},null,null,null,{"$f":"+'Cover Page'!$B$33","v":"The Coventry And Solihull Waste Disposal Company Ltd"}]
[]
["Operational Data",null,null,null,null,null,null,null,null,null,"Notes:"]
["Plant Size",315000,null,"tonnes pa",18,"MWth",77,"MWt",null,null,"* - RDF to include SRF "]
["No. of combustion lines",3,null,"No. of Turbines:",null,2,null,null,null,null,"** - CHP plants only"]
[null,null,null,null,null,null,null,null,null,null,"2020 updates include;  heat in MWh, water in Litres, NCV in MJ/kg"]
["Waste types received","Unit","Q1","Q2","Q3","Q4","Year Total","%"]
["Household / Local Authority","tonnes",76871,75253,77047,62180,{"$f":"SUM(C8:F8)","v":291351},{"$f":"IF(G8>0,G8/$G$18,\"-\")","v":0.98717874870821831},null,null,"Availabiity Definition: 'the availability of a line is to be calculated by the number of hours the line reported Continuously Monitored emission levels to the Regulator through the calendar year divided by the total number of hours in that year. \nThe overall plant availability is calculated as the Mean of all lines in the plant. For clarity this includes periods of Other Than Normal Operating Conditions (OTNOC) and abnormal operation.'  \n\nRationale: The primary function of an Energy from Waste facility is the disposal of waste. It follows therefore that the availability of a plant is determined by the period of time a facility spends undertaking this activity."]
["Commercial & Industrial ",null,null,null,null,null,{"$f":"SUM(C9:F9)","v":0},"-"]
["Hazardous ",null,94,86,99,103,382,1.2943229369610518E-3]
["Clinical",null,null,null,null,null,0,"-"]
["Waste wood (biomass) ",null,null,null,null,null,0,"-"]
["Refuse Derived Fuel * - H'hold/LA",null,null,null,null,null,{"$f":"SUM(C13:F13)","v":0},"-"]
["Refuse Derived Fuel *  - C&I",null,null,null,null,null,0,"-"]
["Paper Cardboard",null,0,0,null,0,{"$f":"SUM(C15:F15)","v":0},{"$f":"IF(G15>0,G15/$G$18,\"-\")","v":"-"}]
["HWRC Waste Suitable for EfW",null,895,1004,879,624,{"$f":"SUM(C16:F16)","v":3402},{"$f":"IF(G16>0,G16/$G$18,\"-\")","v":1.1526928354820675E-2}]
["Other [Please specify]"]
["Total waste received",null,{"$f":"SUM(C8:C17)","v":77860},{"$f":"SUM(D8:D17)","v":76343},{"$f":"SUM(E8:E17)","v":78025},{"$f":"SUM(F8:F17)","v":62907},{"$f":"SUM(G8:G17)","v":295135},1]
["Rejected Waste ",null,null,null,null,null,{"$f":"SUM(C19:F19)","v":0},{"$f":"IF(G19>0,G19/$G$18,\"-\")","v":"-"}]
["Unprocessed waste transferred out",null,null,null,null,null,{"$f":"SUM(C20:F20)","v":0},{"$f":"IF(G20>0,G20/$G$18,\"-\")","v":"-"}]
["Total waste combusted",null,{"$f":"C18-SUM(C19:C20)","v":77860},{"$f":"D18-SUM(D19:D20)","v":76343},78025,62907,{"$f":"SUM(C21:F21)","v":295135},{"$f":"IF(G21>0,G21/$G$18,\"-\")","v":1}]
[]
["Energy Useage / Export","Unit","Q1","Q2","Q3","Q4","Year Total","KWh/te"]
["Power Generated","MWh",33437,33118,34878,25896,{"$f":"SUM(C24:F24)","v":127329},{"$f":"IF(G24>0,G24*1000/$G$21,\"-\")","v":431.42629644061191}]
["Power Exported",null,27777,27486,28964,21225,{"$f":"SUM(C25:F25)","v":105452},{"$f":"IF(G25>0,G25*1000/$G$21,\"-\")","v":357.30089620004406}]
["Power Used on site",null,5701,5644,5924,4933,{"$f":"SUM(C26:F26)","v":22202},{"$f":"IF(G26>0,G26*1000/$G$21,\"-\")","v":75.226591220966682}]
["Power Imported",null,41,12,10,262,325,{"$f":"IF(G27>0,G27*1000/$G$21,\"-\")","v":1.1011909803988005}]
["Parasitic Load","%",{"$f":"IF(C24>0,1-C25/(C24+C27),\"-\")","v":0.1702909373319792},{"$f":"IF(D24>0,1-D25/(D24+D27),\"-\")","v":0.17035919106549957},{"$f":"IF(E24>0,1-E25/(E24+E27),\"-\")","v":0.16980050447145145},{"$f":"IF(F24>0,1-F25/(F24+F27),\"-\")","v":0.18858475418609988},{"$f":"IF(G24>0,1-G25/(G24+G27),\"-\")","v":0.17392326131574409}]
["Thermal Energy Produced **","Annual Performance Report 2022",4181,3989,2927,2191,{"$f":"SUM(C29:F29)","v":13288},{"$f":"IF(G29>0,G29*1000/$G$21,\"-\")","v":45.023463838582344}]
["Thermal Energy Exported **",null,3733,3562,2613,1956,11864,{"$f":"IF(G30>0,G30*1000/$G$21,\"-\")","v":40.198553204465753}]
["R1 value",null,null,null,null,null,"Design / Operational / n/a"]
[]
["Waste Disposal & Recovery","Unit","Q1","Q2","Q3","Q4","Year Total","% inputs"]
["APC Residues - produced","tonnes",3081,2923,3006,2334,{"$f":"SUM(C34:F34)","v":11344},{"$f":"IF(G34>0,G34/$G$21,\"-\")","v":3.8436647635827673E-2}]
["IBA - produced",null,10893,11869,11489,8366,42617,{"$f":"IF(G35>0,G35/$G$21,\"-\")","v":0.1443983261897098}]
["Metals recycling",null,2105,2077,2138,1668,{"$f":"SUM(C36:F36)","v":7988},2.7065580158232672E-2]
["Other",null,0,0,0,0,{"$f":"SUM(C37:F37)","v":0},"-"]
["Other",null,0,0,0,0,0,"-"]
["Other",null,2021,0,0,0,2021,6.8477137581106949E-3]
[]
["Raw Material Usage","Unit","Q1","Q2","Q3","Q4","Year Total","kg or Ltr /te"]
["Mains Water","ltrs",23370,32922,34574,20055,{"$f":"SUM(C42:F42)","v":110921},{"$f":"IF(G42>0,G42/$G$21,\"-\")","v":0.37583139919020109}]
["Other Water","ltrs",98768,90854,93574,78969,362165,{"$f":"IF(G43>0,G43/$G$21,\"-\")","v":1.2271164043573279}]
["Ammonia","kgs",222000,210000,230000,211000,873000,2.9579683873481626]
["Urea","kgs",0,0,0,0,{"$f":"SUM(C45:F45)","v":0},"-"]
["Activated Carbon","kgs",18210,16410,17030,16810,68460,0.23196164467108271]
["Lime / hydrated lime","te",1119,1376,1133,881,4509,1.5277754248055974E-2]
["Fuel oil","ltrs",10566,7470,7939,11854,37829,0.1281752418384807]
["Gas","cf",891400,657900,891600,1520000,3960900,13.420638013112644]
["Other",null,0,0,0,0,0]
[]
["Summary ","Line/Unit","Q1","Q2","Q3","Q4","Year Total",null,null,"Hrs in year "]
["Availability of waste combustion by line, hrs",1,1890,2157,2098,1564,{"$f":"SUM(C53:F53)","v":7709},{"$f":"SUM(7709/8760)","v":0.88002283105022827},null,8760]
[null,2,1889,1937,1880,1733,7439,{"$f":"SUM(7439/8760)","v":0.84920091324200908}]
[null,3,2137,1831,2123,1367,7458,{"$f":"SUM(7458/8760)","v":0.85136986301369866}]
[null,4,null,null,null,null,0,"x %"]
[null,5,null,null,null,null,{"$f":"SUM(C57:F57)","v":0},"x %"]
["Overall Availability, mean avg. of all lines, hrs",null,89,89,92,70,{"$f":"AVERAGE(G53:G57)","v":4521.2},0.86]
["Hours of turbine operations, hrs",1,2147,2183,2208,1718,8256,0.94199999999999995]
["Hours of turbine operations, hrs",2,1738,2173,1993,1505,7409,0.84599999999999997]
["Hours of heat / steam export",null,1738,2173,1993,1505,7409,{"$f":"IF(B61>0,G60/J53,\"n/a\")","v":"n/a"}]
["Net Calorific Value of waste","MJ/kg",13.61,13.61,13.61,13.61,54.44,"-"]
["Abnormal Events","qty.",1,1,0,0,2,{"$f":"IF(G63>0,\"yes\",\"no\")","v":"yes"}]
["Abnormal operation","hours",1.5,1.5,1.5,0,4.5,{"$f":"+(G64)/J53","v":5.1369863013698625E-4}]
["Permit Breaches","qty.",0,0,1,0,1,{"$f":"IF(G65>0,\"yes\",\"no\")","v":"yes"}]

{"sheet":"Operational Summary","index":4,"n_rows":53,"n_cols":11,"rows_kept":53,"cut":false,"hidden":false,"merged":[[4,0,26,8],[30,0,51,8],[4,10,13,13],[30,10,39,13]]}
[{"$f":"+'Cover Page'!$B$29","v":"Annual Performance Report 2022"},null,null,null,{"$f":"+'Cover Page'!$B$33","v":"The Coventry And Solihull Waste Disposal Company Ltd"}]
[]
["Summary of Plant Operations and Maintenance during the reporting year",null,null,null,null,null,null,null,null,null,"Notes:"]
[]
["There were Minor outages as follows - January unit 2 minor, March unit 1 minor, May unit 3 minor, July unit 2 minor, October unit 1 major outage including a total shut down or the whole plant and boiler washes on units 2 and 3, December unit 3 minor.\nNox trials took place in February and July to check ahead of the BREF and associated changes to ELVs\n17 explosive cleaning visits were undertaken on units 2 and 3.\nEmission monitoring was undertaken in April June and September by Element.\nThe cooling towers were serviced in May and October and the refuse cranes were replace in September and October",null,null,null,null,null,null,null,null,null,"Include summary of key operational and/or mainteanance activity undertaken in the year, such as any major component upgrades and/or replacements "]
[]
[]
[]
[]
[]
[]
[]
[]
[]
[]
[]
[]
[]
[]
[]
[]
[]
[]
[]
[]
[]
[]
[]
["Summary of Residue Handling for the reporting year","Annual Performance Report 2022"]
[]
["Incinerator bottom ash is separated and stored on site for collection by aggregate HGVs, which as loaded by crane before transporting the ash to a processing site which is operated by a third party. All metals metals are left mixed with the IBA and removed from site for processing by a third party (Johnsons Aggregates, Derby), and the metal is now separated by them on their premises.\n\nAPCr is conveyed by the FGT system into storage silos. From there it is deposited into tankers (Lomas) for transortation to a third party processor (Augean).",null,null,null,null,null,null,null,null,null,"Include in here a summary of residue handling regimes and destinations "]
[]
[]
[]
[]
[]
[]
[]
[]
[]
[]
[]
[]
[]
[]
[]
[]
[]
[]
[]
[]
[]
[null,null,"2022-01-31"]

{"sheet":"Perf. Form 1","index":5,"n_rows":54,"n_cols":10,"rows_kept":54,"cut":false,"hidden":false,"merged":[[9,0,9,9],[10,0,10,1],[10,2,10,3],[10,4,10,5],[10,6,10,7],[10,8,10,9],[2,0,2,4],[2,6,2,8],[3,1,3,4],[5,3,5,4],[5,6,5,7],[8,0,8,1],[8,2,8,3],[8,4,8,5],[8,6,8,7],[8,8,8,9],[11,0,11,1],[11,2,11,3],[11,4,11,5],[11,6,11,7],[11,8,11,9],[12,0,12,1],[12,2,12,3],[12,4,12,5],[12,6,12,7],[12,8,12,9],[15,0,15,1],[15,2,15,3],[15,4,15,5],[15,6,15,7],[15,8,15,9],[16,0,16,9],[13,0,13,1],[13,2,13,3],[13,4,13,5],[13,6,13,7],[13,8,13,9],[14,0,14,3],[14,4,14,5],[14,6,14,7],[14,8,14,9],[17,0,17,1],[17,2,17,3],[17,4,17,5],[17,6,17,7],[17,8,17,9],[18,0,18,1],[18,2,18,3],[18,4,18,5],[18,6,18,7],[18,8,18,9],[19,0,19,1],[19,2,19,3],[19,4,19,5],[19,6,19,7],[19,8,19,9],[20,0,20,1],[20,2,20,3],[20,4,20,5],[20,6,20,7],[20,8,20,9],[21,0,21,1],[21,2,21,3],[21,4,21,5],[21,6,21,7],[21,8,21,9],[22,0,22,3],[22,4,22,5],[22,6,22,7],[22,8,22,9],[31,0,31,3],[31,7,31,8],[32,0,32,3],[32,4,32,5],[32,7,32,8],[33,0,33,3],[33,4,33,5],[33,7,33,8],[23,0,23,3],[23,4,23,5],[23,6,23,7],[23,8,23,9],[25,0,25,9],[26,0,28,9],[36,0,36,3],[36,4,36,5],[36,7,36,8],[37,0,37,3],[37,4,37,5],[37,7,37,8],[34,0,34,3],[34,4,34,5],[34,7,34,8],[35,0,35,3],[35,4,35,5],[35,7,35,8],[47,0,47,1],[49,0,49,9],[50,0,51,9],[38,0,38,9],[39,0,40,9],[43,0,43,1],[43,2,43,9],[45,0,45,1],[46,0,46,1]]}
[{"$f":"+'Cover Page'!C39","v":2021}," Annual Reporting Performance Form 1"]
[]
[{"$f":"+'Cover Page'!B31","v":"Permit EPR/NP3739PD"},null,null,null,null,"Operator: ",{"$f":"+'Cover Page'!B37:I37","v":0}]
["Facility:",{"$f":"+'Cover Page'!B33:I33","v":"The Coventry And Solihull Waste Disposal Company Ltd"},null,null,null,"Form:","Performance 1"]
[]
["Reporting  Period from: ",null,null,"2021-01-01",null,"to:","2021-12-31"]
[]
[{"$f":"+A1","v":2021},"Annual Reporting of Waste Disposal and Recovery"]
["Waste Description",null,"Disposal Route(s)",null,"Disposal Tonnes",null,"Recovery Tonnes",null,"% / tonne of waste incinerated"]
["1) Hazardous Wastes"]
["APC Residues",null,"Pretreament and landfill",null,11344,null,null,null,{"$f":"IF((E11+G11)>0,(E11+G11)/'Operational Data'!$G$21, \"-\")","v":3.8436647635827673E-2}]
["IBA",null,"N/A",null,null,null,null,null,{"$f":"IF((E12+G12)>0,(E12+G12)/'Operational Data'!$G$21, \"-\")","v":"-"}]
[null,null,null,null,null,null,null,null,{"$f":"IF((E13+G13)>0,(E13+G13)/'Operational Data'!$G$21, \"-\")","v":"-"}]
[null,null,null,null,null,null,null,null,{"$f":"IF((E14+G14)>0,(E14+G14)/'Operational Data'!$G$21, \"-\")","v":"-"}]
["Total Hazardous Waste",null,null,null,{"$f":"SUM(E11:F14)","v":11344},null,{"$f":"SUM(G11:H14)","v":0},null,{"$f":"IF((E15+G15)>0,(E15+G15)/'Operational Data'!$G$21, \"-\")","v":3.8436647635827673E-2}]
[]
["2) Non-Hazardous Wastes"]
["IBA",null,"Recovery",null,null,null,42616,null,{"$f":"IF((E18+G18)>0,(E18+G18)/'Operational Data'!$G$21, \"-\")","v":0.14439493790977009}]
["Ferrous Metal",null,"Recovery",null,null,null,7988,null,{"$f":"IF((E19+G19)>0,(E19+G19)/'Operational Data'!$G$21, \"-\")","v":2.7065580158232672E-2}]
["Process Water",null,"Disposal to foul sewer",null,119165,null,null,null,{"$f":"IF((E20+G20)>0,(E20+G20)/'Operational Data'!$G$21, \"-\")","v":0.40376437901299406}]
[null,null,null,null,null,null,null,null,{"$f":"IF((E21+G21)>0,(E21+G21)/'Operational Data'!$G$21, \"-\")","v":"-"}]
[null,null,null,null,null,null,null,null,{"$f":"IF((E22+G22)>0,(E22+G22)/'Operational Data'!$G$21, \"-\")","v":"-"}]
["Total Non-Hazardous Waste",null,null,null,{"$f":"SUM(E18:F22)","v":119165},null,{"$f":"SUM(G18:H22)","v":50604},null,{"$f":"IF((E23+G23)>0,(E23+G23)/'Operational Data'!$G$21, \"-\")","v":0.57522489708099678}]
["TOTAL WASTE",null,null,null,{"$f":"+E23+E15","v":130509},null,{"$f":"+G23+G15","v":50604},null,{"$f":"IF((E24+G24)>0,(E24+G24)/'Operational Data'!$G$21, \"-\")","v":0.61366154471682455}]
[]
["Operator’s comments :"]
[]
[]
[]
[]
[{"$f":"+A1","v":2021},"Annual Reporting of Water and Other Raw Material Usage"]
["Raw Material",null,null,null,"Usage",null,"Unit","Specific Useage",null,"Unit"]
["Mains Water",null,null,null,{"$f":"+'Operational Data'!G42","v":110921},null,"m3",{"$f":"IF(E33>0,E33/'Operational Data'!$G$21,\"-\")","v":0.37583139919020109},null,"m3/te"]
["Total Water",null,null,null,{"$f":"+'Operational Data'!G43+'Operational Data'!G42","v":473086},null,"m3",{"$f":"IF(E34>0,E34/'Operational Data'!$G$21,\"-\")","v":1.6029478035475291},null,"m3/te"]
["Urea / Ammonia",null,null,null,{"$f":"+'Operational Data'!G44","v":873000},null,"kg",{"$f":"IF(E35>0,E35/'Operational Data'!$G$21,\"-\")","v":2.9579683873481626},null,"kg/te"]
["Activated Carbon",null,null,null,{"$f":"+'Operational Data'!G46","v":68460},null,"kg",{"$f":"IF(E36>0,E36/'Operational Data'!$G$21,\"-\")","v":0.23196164467108271},null,"kg/te"]
["Lime / hydrated lime / Sodium Bicarb.",null,null,null,{"$f":"+'Operational Data'!G47","v":4509},null,"kg",{"$f":"IF(E37>0,E37/'Operational Data'!$G$21,\"-\")","v":1.5277754248055974E-2},null,"kg/te"]
[]
["Operator’s comments :"]
[]
[]
[]
[{"$f":"+A31","v":2021},"Annual Reporting of other performance indicators "]
["Parameter",null,"Results by Line"]
[null,null,"A1","A2","A3","A4","A5",null,"Turbine 1","Turbine 2"]
["Operating hours for the year, hours",null,8063,8153,8102,null,null,null,8636,8267]
["Number of periods of abnormal operation, qty.",null,1,1,1,null,null,null,0,0]
["Cumulative hours of abnormal operation for this year, hours",null,1.5,1.65,1.5,null,null,null,0,0]
[]
["Operator’s comments :"]
[]
[]
[null,null,"2022-01-31"]
["Signed: ",null,null,null,null,null,"Date:","2022-01-28"]

{"sheet":"Energy Form 1","index":6,"n_rows":53,"n_cols":8,"rows_kept":53,"cut":false,"hidden":false,"merged":[[2,6,2,8],[4,1,4,4],[6,3,6,4],[6,6,6,7],[8,0,8,2],[8,3,8,4],[8,6,8,8],[9,0,9,2],[9,3,9,4],[9,6,9,8],[10,0,10,2],[10,3,10,4],[10,6,10,8],[11,0,11,2],[11,3,11,4],[11,6,11,8],[12,0,12,2],[12,3,12,4],[12,6,12,8],[13,0,13,2],[13,3,13,4],[13,6,13,8],[14,0,14,2],[14,3,14,4],[14,6,14,8],[15,0,15,2],[15,3,15,4],[15,6,15,8],[17,0,17,8],[18,0,24,8]]}
[{"$f":"+'Cover Page'!C39","v":2021}," Annual Reporting of Energy Usage/Export"]
[]
[{"$f":"+'Cover Page'!B31","v":"Permit EPR/NP3739PD"},null,null,null,null,"Operator: ","CSWDC"]
[]
["Facility:",{"$f":"+'Cover Page'!B33:I33","v":"The Coventry And Solihull Waste Disposal Company Ltd"},null,null,null,"Form:","Energy 1"]
[]
["Reporting  Period from: ",null,null,{"$f":"+'Perf. Form 1'!D6:E6","v":"2021-01-01"},null,"to:",{"$f":"+'Perf. Form 1'!G6:H6","v":"2021-12-31"}]
[]
["Energy Source",null,null,"Energy Usage",null,"Unit","Specific Useage (KWh/tonne incinerated"]
["Electricity Produced",null,null,{"$f":"+'Operational Data'!G24","v":127329},null,"MWh",{"$f":"+'Operational Data'!H24","v":431.42629644061191}]
["Electricity Imported   ",null,null,{"$f":"+'Operational Data'!G27","v":325},null,"MWh",{"$f":"+'Operational Data'!H27","v":1.1011909803988005}]
["Electricity Exported",null,null,{"$f":"+'Operational Data'!G25","v":105452},null,"MWh",{"$f":"+'Operational Data'!H25","v":357.30089620004406}]
["Gas Oil",null,null,{"$f":"+'Operational Data'!G48","v":37829},null,"litres"]
["Steam/hot water exported",null,null,{"$f":"+'Operational Data'!G30","v":11864},null,"MWh (t)",{"$f":"+'Operational Data'!H30","v":40.198553204465753}]
["Gas Oil",null,null,3960900,null,"cf","13.42 cf/te incinerated"]
[]
[]
["Operator’s comments :"]
[]
[]
[]
[]
[]
[]
[]
[]
[]
[]
["Signed: ","Annual Performance Report 2022",null,null,null,null,"Date:","2022-01-28"]
[]
[]
[]
[]
[]
[]
[]
[]
[]
[null,null,2021]
[]
[]
[]
[]
[]
[]
[]
[]
[]
[]
[]
[]
[]
[null,null,"2022-01-31"]

{"sheet":"Permit Compliance","index":7,"n_rows":53,"n_cols":12,"rows_kept":53,"cut":false,"hidden":false,"merged":[[8,11,17,14],[33,4,33,8],[9,0,9,1],[9,2,9,4],[9,5,9,8],[10,0,10,1],[10,2,10,4],[10,5,10,8],[11,0,11,1],[11,2,11,4],[11,5,11,8],[12,0,12,1],[12,2,12,4],[12,5,12,8],[13,0,13,1],[13,2,13,4],[7,0,7,1],[7,2,7,8],[8,0,8,1],[8,2,8,4],[8,5,8,8],[13,5,13,8],[14,0,14,1],[14,2,14,4],[14,5,14,8],[15,0,15,1],[16,2,16,4],[16,5,16,8],[15,2,15,4],[15,5,15,8],[16,0,16,1],[19,1,19,3],[19,4,19,6],[19,7,19,9],[20,1,20,3],[20,4,20,6],[20,7,20,9],[24,7,24,9],[21,1,21,3],[21,4,21,6],[21,7,21,9],[22,1,22,3],[22,4,22,6],[22,7,22,9],[32,1,32,3],[32,4,32,6],[32,7,32,9],[29,1,29,3],[29,4,29,6],[29,7,29,9],[30,1,30,3],[30,4,30,6],[30,7,30,9],[26,0,26,10],[18,0,18,10],[31,1,31,3],[31,4,31,6],[31,7,31,9],[27,1,27,3],[27,4,27,6],[27,7,27,9],[28,1,28,3],[28,4,28,6],[28,7,28,9],[23,1,23,3],[23,4,23,6],[23,7,23,9],[24,1,24,3],[24,4,24,6]]}
[{"$f":"+'Cover Page'!$B$29","v":"Annual Performance Report 2022"},null,null,null,{"$f":"+'Cover Page'!$B$33","v":"The Coventry And Solihull Waste Disposal Company Ltd"}]
[]
["Summary of Permit Compliance"]
[]
["Compliance with permit limits for continuously monitored pollutants"]
[]
["The plant met its emission limits as shown in the table below:"]
["Substance",null,"Percentage time compliant during operation",null,null,null,null,null,null,null,null,"Notes:"]
[null,null,"Half-hourly limit",null,null,"Daily limit",null,null,null,null,null,"Report to 2 decimal places, i.e. xx.xx%\n\nPlease provide a brief summary of each notification or non-compliance in the table (rather than just referring to notifications that were sent to the Regulator).  \n\n"]
["Particulates",null,1,null,null,1]
["Oxides of nitrogen",null,1,null,null,1]
["Sulphur dioxide",null,1,null,null,1]
["Carbon monoxide",null,"100% 95% of 10-min averages",null,null,1]
["Total organic carbon",null,1,null,null,1]
["Hydrogen chloride",null,1,null,null,1]
["Hydrogen fluoride",null,1,null,null,1]
[null,null,1,null,null,1]
[]
["Summary of any notifications or non-compliances under the permit"]
["Date","Summary of notification or non-compliance [including Line/Reference]",null,null,"Reason ",null,null,"Measures taken to prevent reoccurrence"]
["2021-01-02","Loss of all CEMs data acrioss all three lines for 1hr 31 mins",null,null,"Control box failed unexpectedly",null,null,"Call out maintenance technician found fault and replaced unit"]
[]
[]
[]
[]
[]
["Summary of any complaints received and actions to taken to resolve them."]
["Date","Summary of complaint [including Line/Reference]",null,null,"Reason *",null,null,"Measures taken to prevent reoccurrence"]
[]
[]
[]
[]
[]
[null,null,null,null,"* including whether substantiated by the operator or the EA"]
[]
[]
[]
[]
[null,null,2021]
[]
[]
[]
[]
[]
[]
[]
[]
[]
[]
[]
[]
[]
[null,null,"2022-01-31"]

{"sheet":"Improvements","index":8,"n_rows":53,"n_cols":5,"rows_kept":53,"cut":false,"hidden":false,"merged":[[37,0,37,9],[38,0,47,9],[4,0,4,9],[15,0,15,9],[16,0,24,9],[26,0,26,9],[27,0,35,9]]}
[{"$f":"+'Cover Page'!$B$29","v":"Annual Performance Report 2022"},null,null,null,{"$f":"+'Cover Page'!$B$33","v":"The Coventry And Solihull Waste Disposal Company Ltd"}]
[]
["Summary of Plant Improvements"]
[]
["Summary of any efficiency improvements that have been completed within the year."]
["Further installation of low energy lighting, replacement of refuse cranes, installation of acoustic hush kit covers on plant"]
["Installation of imporved water control on softeners, removal of magnetic separator in ash stream"]
["Carbon footprint policy developed"]
[]
[]
[]
[]
[]
[]
[]
["Summary of any permit improvement conditions that have been completed within the year and the resulting environmental benefits."]
["n/a"]
[]
[]
[]
[]
[]
[]
[]
[]
[]
["Summary of any changes to the plant or operating techniques which required a variation to the permit and a summary of the resulting environmental impact."]
[]
[]
[]
[]
[]
[]
[]
[]
[]
[]
["Summary of any other improvements made to the plant or planned to be made and a summary of the resulting environmental benefits."]
["Intall additional CEMs equipment to give full redundancy in case of failure and safeguard against fire damage etc"]
[]
[]
[]
[]
[]
[]
[]
[]
[]
[]
[]
[]
[]
[null,null,"2022-01-31"]

{"sheet":"Public Liasion","index":9,"n_rows":53,"n_cols":5,"rows_kept":53,"cut":false,"hidden":false,"merged":[[16,0,16,1],[16,2,16,9],[5,0,5,1],[5,2,5,9],[6,0,7,1],[6,2,7,9],[8,0,9,1],[8,2,9,9],[10,0,11,1],[10,2,11,9],[12,0,13,1],[12,2,13,9],[15,0,15,9],[17,0,18,1],[17,2,18,9],[19,0,20,1],[19,2,20,9],[21,0,22,1],[21,2,22,9],[23,0,24,1],[23,2,24,9],[25,0,26,1],[25,2,26,9],[28,0,28,9]]}
[{"$f":"+'Cover Page'!$B$29","v":"Annual Performance Report 2022"},null,null,null,{"$f":"+'Cover Page'!$B$33","v":"The Coventry And Solihull Waste Disposal Company Ltd"}]
[]
["Details of Public & Stakeholder Liasion"]
[]
["Summary of events held during the reporting year."]
["Date",null,"Description"]
[null,null,"No site visits were allowed due to the ongoing pandemic"]
[]
[]
[]
[]
[]
[]
[]
[]
["List of events planned for next year"]
["Date",null,"Description"]
[null,null,"Unsure if we can recommence site visits - Pandemic dependent, hopefully we can restart"]
[]
[]
[]
[]
[]
[]
[]
[]
[]
[]
["If you wish to be involved in the public liasion programme, please contact _________________"]
[]
[]
[]
[]
[]
[]
[]
[]
[]
[null,null,2021]
[]
[]
[]
[]
[]
[]
[]
[]
[]
[]
[]
[]
[]
[null,null,"2022-01-31"]

{"sheet":"Residue Quality ","index":10,"n_rows":53,"n_cols":6,"rows_kept":53,"cut":false,"hidden":false,"merged":[[16,0,17,1],[16,2,17,6],[18,0,19,1],[18,2,19,6],[12,0,12,6],[13,0,13,1],[13,2,13,6],[5,0,6,6],[7,0,8,6],[9,0,10,6],[14,0,15,1],[14,2,15,6],[20,0,21,1],[20,2,21,6],[22,0,23,1],[22,2,23,6],[31,3,31,4],[27,2,28,2],[28,3,28,4],[28,5,28,6],[27,3,27,6],[26,0,26,6],[35,0,40,6],[32,3,32,4],[34,0,34,6],[27,0,28,1],[29,0,29,1],[30,0,30,1],[31,0,31,1],[32,0,32,1],[29,3,29,4],[30,3,30,4],[29,5,29,6],[30,5,30,6],[31,5,31,6],[32,5,32,6]]}
[{"$f":"+'Cover Page'!$B$29","v":"Annual Performance Report 2022"},null,null,null,{"$f":"+'Cover Page'!$B$33","v":"The Coventry And Solihull Waste Disposal Company Ltd"}]
[]
["Residue Quality Monitoring Requirements"]
[]
["Summary of monitoring undertaken and compliance"]
["Monthly sampling of IBA for metails, LOI (6/yr), ph, moisture, alcalinity reserve, etc, with quarterly dioxin assessment"]
[]
["Quarterly APCr sampling for metals and dioxins"]
[]
[]
[]
[]
["Commentary on any specific events"]
["Date & Event",null,"Description"]
[]
[]
[]
[]
[]
[]
[]
[]
[]
[]
[]
[]
["Residue Quality Monitoring Results"]
["Parameter (unit) ",null,"Limit","Normal Operation "]
[null,null,null,"Bottom ash  ",null,"APC Residues"]
["Loss on Ignition (average %)",null,"<5%",2.0299999999999999E-2]
["Total Organic Carbon (average %)",null,"<3%","n/a"]
["No. of Assessments Undertaken",null,"---",12,null,4]
["No. of Hazardous Results",null,"---",0]
[]
["Comments :"]
[]
[]
[]
[]
[]
[]
[]
[]
[]
[]
[]
[]
[]
[]
[]
[]
[]
[null,null,"2022-01-31"]

{"sheet":"Water","index":11,"n_rows":53,"n_cols":10,"rows_kept":53,"cut":false,"hidden":false,"merged":[[5,0,6,9],[7,0,8,9],[9,0,10,9],[12,0,12,9],[13,0,13,1],[13,2,13,9],[21,0,21,9],[22,0,22,2],[22,3,22,5],[14,0,15,1],[14,2,15,9],[16,0,17,1],[16,2,17,9],[18,0,19,1],[18,2,19,9],[23,0,23,2],[23,3,23,5],[24,0,24,2],[24,3,24,5],[25,0,25,2],[25,3,25,5],[29,0,29,2],[29,3,29,5],[26,0,26,2],[26,3,26,5],[27,0,27,2],[27,3,27,5],[28,0,28,2],[28,3,28,5]]}
[{"$f":"+'Cover Page'!$B$29","v":"Annual Performance Report 2022"},null,null,null,{"$f":"+'Cover Page'!$B$33","v":"The Coventry And Solihull Waste Disposal Company Ltd"}]
[]
["Emissions to Water"]
[]
["Summary of monitoring undertaken and compliance"]
["PH monitoring taken from IBA quench water on a weekly basis"]
[]
["Effluent content monitored by STW"]
[]
[]
[]
[]
["Commentary on any specific events"]
["Date & Event",null,"Description"]
[]
[]
[]
[]
[]
[]
[]
["Emissions to Water / Sewer"]
["Parameter",null,null,"Monitoring Frequency",null,null,"Limit","Target","Max.","Average"]
["PH",null,null,"Weekly",null,null,12,9,11.13,9.83]
[]
[]
[]
[]
[]
[]
[]
[]
[]
[]
[]
[]
[]
[]
[null,null,2021]
[]
[]
[]
[]
[]
[]
[]
[]
[]
[]
[]
[]
[]
[null,null,"2022-01-31"]

{"sheet":"Air (periodic)","index":12,"n_rows":53,"n_cols":18,"rows_kept":53,"cut":false,"hidden":false,"merged":[[18,0,18,1],[13,0,13,1],[14,0,14,1],[15,0,15,1],[16,3,16,4],[17,3,17,4],[16,0,16,1],[17,0,17,1],[13,3,13,4],[18,3,18,4],[14,3,14,4],[15,3,15,4],[5,12,8,15],[8,0,8,9],[5,0,6,9],[11,0,11,1],[12,0,12,1],[11,3,11,4],[12,3,12,4],[9,0,10,1],[9,5,9,9],[9,3,10,4],[9,2,10,2],[12,15,12,17],[12,12,12,14],[39,0,40,9],[25,0,25,1],[26,0,26,1],[22,0,22,1],[23,0,23,1],[37,0,37,1],[27,0,27,1],[28,0,28,1],[29,0,29,1],[30,0,30,1],[31,0,31,1],[32,0,32,1],[37,3,37,4],[29,3,29,4],[30,3,30,4],[36,3,36,4],[19,0,19,1],[20,0,20,1],[21,0,21,1],[34,3,34,4],[35,3,35,4],[33,0,33,1],[34,0,34,1],[35,0,35,1],[24,0,24,1],[32,3,32,4],[27,3,27,4],[33,3,33,4],[19,3,19,4],[20,3,20,4],[31,3,31,4],[25,3,25,4],[28,3,28,4],[38,0,38,9],[36,0,36,1],[26,10,26,11],[28,10,28,11],[29,10,29,11],[30,10,30,11],[31,10,31,11],[32,10,32,11],[33,10,33,11],[34,10,34,11],[35,10,35,11],[36,10,36,11],[37,10,37,11],[38,10,38,11],[21,3,21,4],[22,3,22,4],[23,3,23,4],[24,3,24,4],[27,10,27,11],[26,3,26,4],[39,10,39,11],[40,10,40,11],[14,10,14,11],[15,10,15,11],[16,10,16,11],[17,10,17,11],[18,10,18,11],[19,10,19,11],[20,10,20,11],[21,10,21,11],[22,10,22,11],[23,10,23,11],[24,10,24,11],[25,10,25,11]]}
[{"$f":"+'Cover Page'!$B$29","v":"Annual Performance Report 2022"},null,null,null,{"$f":"+'Cover Page'!$B$33","v":"The Coventry And Solihull Waste Disposal Company Ltd"}]
[]
["Emissions to Air (periodically monitored)"]
[]
["Summary of monitoring undertaken, standards used and compliance",null,null,null,null,null,null,null,null,null,null,null,"Notes:"]
[null,null,null,null,null,null,null,null,null,null,null,null,"Template may require adjustment for any bespoke monitoring requirements of permit. "]
[]
[]
["Results of emissions to air that are periodically monitored"]
["Substance",null,"Ref. Period","Emission Limit Value",null,"Average"]
[null,null,null,null,null,"A1","A2","A3","A4","A5"]
["Hydrogen fluoride",null,"1 hr","2 mg/m3",null,{"$f":"AVERAGE(M15,P15)","v":0.05},{"$f":"SUM(N15,Q15)","v":0.03},{"$f":"SUM(O15,R15)","v":0.08}]
["Cd and Th and their compounds",null,"6-8hrs","0.05 mg/m3",null,1E-3,{"$f":"SUM(N16,Q16)","v":1E-3},{"$f":"SUM(O16,R16)","v":0},null,null,null,null,"H1",null,null,"H2"]
["Hg and its compounds",null,"6-8hrs","0.05 mg/m3",null,2.5000000000000001E-3,4.0000000000000001E-3,5.0000000000000001E-3,null,null,null,null,"A1","A2","A3","A1","A2","A3"]
["Sb, As, Pb, Cr, Co, Cu, Mn, Ni, V and their compounds",null,"6-8hrs","0.5 mg/m3",null,2.7E-2,5.7999999999999996E-2,5.1000000000000004E-2,null,null,"Hydrogen fluoride",null,0.04,0.03,0.04,0.06,"<0.03",0.04]
["Dioxins & Furans (I-TEQ)",null,"6-8hrs","0.1 ng/m3",null,4.2000000000000006E-3,9.7000000000000003E-3,1.7399999999999999E-2,null,null,"Cd and Th and their compounds",null,1E-3,1E-3,"<0.001",1E-3,"<0.001","<0.001"]
["PCBs (WHO-TEQ Humans / Mammals)",null,"6-8hrs","None set ng/m3",null,9.0400000000000007E-4,7.391E-3,6.2199999999999998E-3,null,null,"Hg and its compounds",null,4.0000000000000001E-3,4.0000000000000001E-3,1E-3,1E-3,"<0.001",4.0000000000000001E-3]
["PCBs (WHO-TEQ Fish)",null,"6-8hrs","None set ng/m3",null,5.1000000000000006E-5,3.1099999999999997E-4,3.1E-4,null,null,"Sb, As, Pb, Cr, Co, Cu, Mn, Ni, V and their compounds",null,1.2999999999999999E-2,1.2999999999999999E-2,2.5000000000000001E-2,4.1000000000000002E-2,4.4999999999999998E-2,2.5999999999999999E-2]
["PCBs (WHO-TEQ Birds)",null,"6-8hrs","None set ng/m3",null,3.32E-3,1.6149999999999998E-2,1.0239999999999999E-2,null,null,"Dioxins & Furans (I-TEQ)",null,4.4000000000000003E-3,8.0000000000000004E-4,1.4E-2,4.0000000000000001E-3,8.8999999999999999E-3,3.3999999999999998E-3]
["Dioxins & Furans (WHO-TEQ Humans / Mammals)",null,"6-8hrs","None set ng/m3",null,4.2500000000000003E-3,9.4000000000000004E-3,1.7299999999999999E-2,null,null,"PCBs (WHO-TEQ Humans / Mammals)",null,1.34E-3,1.9100000000000001E-4,3.46E-3,4.6799999999999999E-4,7.1999999999999998E-3,2.7599999999999999E-3]
["Dioxins & Furans (WHO-TEQ Fish)",null,"6-8hrs","None set ng/m3",null,5.0000000000000001E-3,1.09E-2,1.9900000000000001E-2,null,null,"PCBs (WHO-TEQ Fish)",null,8.0000000000000007E-5,1.1E-5,2.0000000000000001E-4,2.1999999999999999E-5,2.9999999999999997E-4,1.1E-4]
["Dioxins & Furans (WHO-TEQ Birds)",null,"6-8hrs","None set ng/m3",null,8.3000000000000001E-3,1.6E-2,3.0499999999999999E-2,null,null,"PCBs (WHO-TEQ Birds)",null,5.7000000000000002E-3,7.8499999999999993E-3,6.79E-3,9.3999999999999997E-4,8.3000000000000001E-3,3.4499999999999999E-3]
["Anthanthrene",null,"6-8hrs","None set µg/m3",null,2E-3,4.0000000000000001E-3,4.0000000000000001E-3,null,null,"Dioxins & Furans (WHO-TEQ Humans / Mammals)",null,4.4999999999999997E-3,8.9999999999999998E-4,1.4E-2,4.0000000000000001E-3,8.5000000000000006E-3,3.3E-3]
["Benzo(a)anthracene",null,"6-8hrs","None set µg/m3",null,2E-3,4.0000000000000001E-3,4.0000000000000001E-3,null,null,"Dioxins & Furans (WHO-TEQ Fish)",null,5.0000000000000001E-3,1E-3,1.6E-2,5.0000000000000001E-3,9.9000000000000008E-3,3.8999999999999998E-3]
["Benzo(a)pyrene",null,"6-8hrs","None set µg/m3",null,2E-3,4.0000000000000001E-3,4.0000000000000001E-3,null,null,"Dioxins & Furans (WHO-TEQ Birds)",null,9.5999999999999992E-3,1.8E-3,2.5000000000000001E-2,7.0000000000000001E-3,1.4200000000000001E-2,5.4999999999999997E-3]
["Benzo(b)fluoranthene",null,"6-8hrs","None set µg/m3",null,{"$f":"AVERAGE(M29,P29)","v":2E-3},4.0000000000000001E-3,4.0000000000000001E-3,null,null,"Anthanthrene",null,2E-3,2E-3,2E-3,2E-3,2E-3,2E-3]
["Benzo(b)naptho(2,1-d) thiophene",null,"6-8hrs","None set µg/m3",null,6.0000000000000001E-3,1.2E-2,1.2E-2,null,null,"Benzo(a)anthracene",null,2E-3,2E-3,2E-3,2E-3,2E-3,2E-3]
["Benzo(c)phenanthrene",null,"6-8hrs","None set µg/m3",null,2E-3,4.0000000000000001E-3,4.0000000000000001E-3,null,null,"Benzo(a)pyrene",null,2E-3,2E-3,2E-3,2E-3,2E-3,2E-3]
["Benzo(ghi)perylene",null,"6-8hrs","None set µg/m3",null,2E-3,4.0000000000000001E-3,4.0000000000000001E-3,null,null,"Benzo(b)fluoranthene",null,2E-3,2E-3,2E-3,2E-3,2E-3,2E-3]
["Benzo(k)fluoranthene",null,"6-8hrs","None set µg/m3",null,2E-3,4.0000000000000001E-3,4.0000000000000001E-3,null,null,"Benzo(b)naptho(2,1-d) thiophene",null,6.0000000000000001E-3,6.0000000000000001E-3,6.0000000000000001E-3,6.0000000000000001E-3,6.0000000000000001E-3,6.0000000000000001E-3]
["Cholanthrene",null,"6-8hrs","None set µg/m3",null,2E-3,4.0000000000000001E-3,4.0000000000000001E-3,null,null,"Benzo(c)phenanthrene",null,2E-3,2E-3,2E-3,2E-3,2E-3,2E-3]
["Chrysene",null,"6-8hrs","None set µg/m3",null,3.3999999999999998E-3,4.0000000000000001E-3,4.0000000000000001E-3,null,null,"Benzo(ghi)perylene",null,2E-3,2E-3,2E-3,2E-3,2E-3,2E-3]
["Cyclopenta(cd)pyrene",null,"6-8hrs","None set µg/m3",null,2E-3,4.0000000000000001E-3,4.0000000000000001E-3,null,null,"Benzo(k)fluoranthene",null,2E-3,2E-3,2E-3,2E-3,2E-3,2E-3]
["Dibenzo(ai)pyrene",null,"6-8hrs","None set µg/m3",null,2E-3,4.0000000000000001E-3,4.0000000000000001E-3,null,null,"Cholanthrene",null,2E-3,2E-3,2E-3,2E-3,2E-3,2E-3]
["Dibenzo(ah)anthracene",null,"6-8hrs","None set µg/m3",null,2E-3,4.0000000000000001E-3,4.0000000000000001E-3,null,null,"Chrysene",null,4.7999999999999996E-3,2E-3,2E-3,2E-3,2E-3,2E-3]
["Fluoranthene",null,"6-8hrs","None set µg/m3",null,0.115,0.23019999999999999,0.1011,null,null,"Cyclopenta(cd)pyrene",null,2E-3,2E-3,2E-3,2E-3,2E-3,2E-3]
["Indeno(123-cd) pyrene",null,"6-8hrs","None set µg/m3",null,2E-3,4.0000000000000001E-3,4.0000000000000001E-3,null,null,"Dibenzo(ai)pyrene",null,2E-3,2E-3,2E-3,2E-3,2E-3,2E-3]
["Naphthalene",null,"6-8hrs","None set µg/m3",null,0.1053,0.62629999999999997,0.1391,null,null,"Dibenzo(ah)anthracene",null,2E-3,2E-3,2E-3,2E-3,2E-3,2E-3]
["Comments :",null,null,null,null,null,null,null,null,null,"Fluoranthene",null,0.19800000000000001,0.17319999999999999,1.5100000000000001E-2,3.2000000000000001E-2,5.7000000000000002E-2,8.5999999999999993E-2]
[null,null,null,null,null,null,null,null,null,null,"Indeno(123-cd) pyrene",null,2E-3,2E-3,2E-3,2E-3,2E-3,2E-3]
[null,null,null,null,null,null,null,null,null,null,"Naphthalene",null,0.1996,0.51629999999999998,6.1100000000000002E-2,1.0999999999999999E-2,0.11,7.8E-2]
[]
[]
[]
[]
[]
[]
[]
[]
[]
[]
[]
[null,null,"2022-01-31"]

{"sheet":"Air (CEMS)","index":13,"n_rows":53,"n_cols":16,"rows_kept":53,"cut":false,"hidden":false,"merged":[[27,0,27,12],[29,0,30,12],[13,0,14,0],[5,0,6,12],[7,0,8,12],[10,0,10,12],[11,0,12,0],[11,2,12,2],[11,1,12,1],[11,3,11,4],[11,5,11,6],[11,7,11,8],[11,9,11,10],[11,11,11,12]]}
[{"$f":"+'Cover Page'!$B$29","v":"Annual Performance Report 2022"},null,null,null,null,null,null,null,{"$f":"+'Cover Page'!$B$33","v":"The Coventry And Solihull Waste Disposal Company Ltd"}]
[]
["Emissions to Air (continously monitored)"]
[null,null,null,null,null,null,null,null,null,null,null,null,null,null,null,"Notes:"]
["Summary of monitoring undertaken, standards used and compliance",null,null,null,null,null,null,null,null,null,null,null,null,null,null,"Template may require adjustment for any bespoke monitoring requirements of permit"]
["MIR FT, FID, MCERTS, A1-Cbiss installation, software, servicing and support",null,null,null,null,null,null,null,null,null,null,null,null,null,null,"Report to 2 decimal places, i.e. xx.xx%"]
[]
[]
[]
[]
["Results of emissions to air that are continuously monitored (maximum and average values for each line)"]
["Substance","Reference Period","Emission Limit Value","A1",null,"A2",null,"A3",null,"A4",null,"A5"]
[null,null,null,"Max.","Avg.","Max.","Avg.","Max.","Avg.","Max.","Avg.","Max.","Avg."]
["Oxides of nitrogen","Daily mean","200 mg/m3 ",{"$f":"NOx!O19","v":197.42},{"$f":"NOx!N19","v":185.21083333333331},{"$f":"NOx!O34","v":198.46},{"$f":"NOx!N34","v":179.92083333333335},{"$f":"NOx!O49","v":195.34},{"$f":"NOx!N49","v":179.54166666666666}]
[null,"½ hourly mean","400 mg/m3 ",{"$f":"NOx!M19","v":333.45},{"$f":"NOx!L19","v":184.90583333333336},{"$f":"NOx!M34","v":310.72000000000003},{"$f":"NOx!L34","v":179.57500000000002},{"$f":"NOx!M49","v":310.61},{"$f":"NOx!L49","v":179.37583333333336}]
["Particulates","Daily mean","10 mg/m3",{"$f":"Particulates!O19","v":0.72},{"$f":"Particulates!N19","v":0.47000000000000003},{"$f":"Particulates!O34","v":0.92},{"$f":"Particulates!N34","v":0.46},{"$f":"Particulates!O49","v":4.33},{"$f":"Particulates!N49","v":0.98250000000000004}]
[null,"½ hourly mean","30 mg/m3 ",{"$f":"Particulates!M19","v":8.7799999999999994},{"$f":"Particulates!L19","v":0.47333333333333338},{"$f":"Particulates!M34","v":3.91},{"$f":"Particulates!L34","v":0.46583333333333332},{"$f":"Particulates!M49","v":26.39},{"$f":"Particulates!L49","v":0.96583333333333332}]
["Total Organic Carbon ","Daily mean","10 mg/m3 ",{"$f":"TOC!O19","v":4.09},{"$f":"TOC!N19","v":0.6974999999999999},{"$f":"TOC!O34","v":1.53},{"$f":"TOC!N34","v":0.50416666666666654},{"$f":"TOC!O49","v":1.7},{"$f":"TOC!N49","v":0.59583333333333333}]
[null,"½ hourly mean","20 mg/m3 ",{"$f":"TOC!M19","v":5.37},{"$f":"TOC!L19","v":0.69416666666666649},{"$f":"TOC!M34","v":5.35},{"$f":"TOC!L34","v":0.50166666666666659},{"$f":"TOC!M49","v":10.220000000000001},{"$f":"TOC!L49","v":0.59583333333333333}]
["Hydrogen chloride ","Daily mean","10 mg/m3 ",{"$f":"HCl!O19","v":2.85},{"$f":"HCl!N19","v":0.79999999999999993},{"$f":"HCl!O34","v":3.1},{"$f":"HCl!N34","v":1.0541666666666667},{"$f":"HCl!O49","v":2.5099999999999998},{"$f":"HCl!N49","v":0.82583333333333331}]
[null,"½ hourly mean","60 mg/m3 ",{"$f":"HCl!M19","v":9.86},{"$f":"HCl!L19","v":0.81166666666666665},{"$f":"HCl!M34","v":13.43},{"$f":"HCl!L34","v":1.0466666666666666},{"$f":"HCl!M49","v":6.72},{"$f":"HCl!L49","v":0.81500000000000006}]
["Sulphur dioxide","Daily mean","50 mg/m3 ",{"$f":"'SO2'!O19","v":47.97},{"$f":"'SO2'!N19","v":37.580833333333338},{"$f":"'SO2'!O34","v":45.59},{"$f":"'SO2'!N34","v":39.929166666666667},{"$f":"'SO2'!O49","v":44.66},{"$f":"'SO2'!N49","v":36.005833333333335}]
[null,"½ hourly mean","200 mg/m3 ",{"$f":"'SO2'!M19","v":132.81},{"$f":"'SO2'!L19","v":37.32},{"$f":"'SO2'!M34","v":146.85},{"$f":"'SO2'!L34","v":39.713333333333331},{"$f":"'SO2'!M49","v":166.01},{"$f":"'SO2'!L49","v":35.635833333333331}]
["Carbon monoxide ","Daily mean","50 mg/m3 ",{"$f":"'CO 95% 10 min'!Q19","v":45.61},{"$f":"'CO 95% 10 min'!P19","v":25.630833333333332},{"$f":"'CO 95% 10 min'!Q34","v":45.63},{"$f":"'CO 95% 10 min'!P34","v":17.608333333333334},{"$f":"'CO 95% 10 min'!Q49","v":36.72},{"$f":"'CO 95% 10 min'!P49","v":14.615833333333333}]
[null,"½ hourly mean *","100 mg/m3 *"]
[null,"95%ile 10-min avg *","150 mg/m3 *",{"$f":"'CO 95% 10 min'!M19","v":76.02},{"$f":"'CO 95% 10 min'!N19","v":25.551666666666666},{"$f":"'CO 95% 10 min'!M34","v":77.3},{"$f":"'CO 95% 10 min'!N34","v":17.57},{"$f":"'CO 95% 10 min'!M49","v":89.97},{"$f":"'CO 95% 10 min'!N49","v":14.67}]
[" Ammonia","Daily mean","No limit set",{"$f":"'NH3'!O19","v":19.57},{"$f":"'NH3'!N19","v":4.6241666666666665},{"$f":"'NH3'!O34","v":18.09},{"$f":"'NH3'!N34","v":4.7841666666666667},{"$f":"'NH3'!O49","v":10.54},{"$f":"'NH3'!N49","v":2.6374999999999997}]
["* = delete or amend as appropriate"]
["Comments :","Annual Performance Report 2022"]
[]
[]
[]
[]
[]
[]
[]
[]
[]
[null,null,2021]
[]
[]
[]
[]
[]
[]
[]
[]
[]
[]
[]
[]
[]
[null,null,"2022-01-31"]

{"sheet":"HCl","index":14,"n_rows":79,"n_cols":17,"rows_kept":79,"cut":false,"hidden":false,"merged":[[12,16,15,18],[51,9,63,9],[66,9,78,9],[4,9,4,14],[4,1,4,3],[4,4,4,6],[48,0,51,6],[47,0,47,6],[6,9,18,9],[21,9,33,9],[36,9,48,9],[3,16,7,18],[9,16,11,18]]}
[{"$f":"+'Cover Page'!$B$29","v":"Annual Performance Report 2022"},null,null,null,{"$f":"+'Cover Page'!$B$33","v":"The Coventry And Solihull Waste Disposal Company Ltd"}]
[]
["Monitoring of Hydrogen Chloride emissions",null,null,"Whole Installation",null,null,"See  Notes in Cell Q3",null,null,{"$f":"+A3","v":"Monitoring of Hydrogen Chloride emissions"},null,null,null,"Per Combustion Line",null,null,"Notes:"]
[null,null,null,null,null,null,null,null,null,null,null,null,null,null,null,null,"User to add logic to complete Whole installation, Table A5:G18. From the data in Per Combustion Line, Table J6:O79, subject to No. of lines installed"]
["mg/Nm3","1/2 Hourly Reference Periods",null,null,"Daily Reference Periods"]
[{"$f":"+'Cover Page'!C39","v":2021},"1/2 hourly HCl ELV","Monthly 1/2 hourly mean","Highest 1/2 hourly maximum","Daily HCl ELV","Monthly daily mean","Highest daily maximum",null,null,{"$f":"+A6","v":2021},"mg/Nm3","Monthly 1/2 hourly mean","Monthly 1/2 hourly maximum","Monthly daily mean","Monthly daily maximum"]
["Jan",60,1.1599999999999999,4.16,10,1.1399999999999999,3.05,null,null,"A1","Jan",0.69,2.35,0.69,1.2]
["Feb",60,0.79,6.84,10,0.8,1.5,null,null,null,"Feb",0.48,6.84,0.49,1.5]
["Mar",60,0.92,13.43,10,0.93,2.02,null,null,null,"Mar",0.33,4.1900000000000004,0.33,0.76,null,"Whole Installation table A5:G18:"]
["Apr",60,0.7,11.66,10,0.7,2.0699999999999998,null,null,null,"Apr",7.0000000000000007E-2,3.77,7.0000000000000007E-2,0.81,null,"Mean: for 1/2 hourly and daily periods calculate mean of values across all operational combustion lines for the month"]
["May",60,0.73,5.46,10,0.73,2.5099999999999998,null,null,null,"May",0.23,3.5,0.23,0.92]
["Jun",60,1.1200000000000001,8.16,10,1.1299999999999999,3.1,null,null,null,"Jun",1.3,8.16,1.29,2.85]
["Jul",60,1.02,6.06,10,1.02,2.93,null,null,null,"Jul",1.46,4.3600000000000003,1.45,2.2200000000000002,null,"Maximum: for 1/2 hourly and daily periods use the highest value across all operational combustion lines for the month"]
["Aug",60,1.01,7.58,10,1.01,2.93,null,null,null,"Aug",1.39,7.58,1.39,1.83]
["Sep",60,1.03,6.5,10,1.03,1.96,null,null,null,"Sep",1.32,4.5199999999999996,1.29,1.96]
["Oct",60,0.56000000000000005,9.52,10,0.55000000000000004,1.4,null,null,null,"Oct",0.79,2.06,0.7,0.78]
["Nov",60,0.77,9.86,10,0.77,1.45,null,null,null,"Nov",0.82,9.86,0.82,1.36]
["Dec",60,0.81,8.8000000000000007,10,0.81,1.84,null,null,null,"Dec",0.86,2.37,0.85,1.19]
[null,null,null,null,null,null,null,null,null,null,"Annual",{"$f":"AVERAGE(L7:L18)","v":0.81166666666666665},{"$f":"MAX(M7:M18)","v":9.86},{"$f":"AVERAGE(N7:N18)","v":0.79999999999999993},{"$f":"MAX(O7:O18)","v":2.85}]
[]
[null,null,null,null,null,null,null,null,null,{"$f":"+A6","v":2021},"mg/Nm3","Monthly 1/2 hourly mean","Monthly 1/2 hourly maximum","Monthly daily mean","Monthly daily maximum"]
[null,null,null,null,null,null,null,null,null,"A2","Jan",2.09,4.16,2.08,3.05]
[null,null,null,null,null,null,null,null,null,null,"Feb",1.0900000000000001,2.41,1.1100000000000001,1.35]
[null,null,null,null,null,null,null,null,null,null,"Mar",1.24,13.43,1.22,2.02]
[null,null,null,null,null,null,null,null,null,null,"Apr",1.1200000000000001,11.66,1.2,2.0699999999999998]
[null,null,null,null,null,null,null,null,null,null,"May",1.1100000000000001,5.46,1.1100000000000001,2.2000000000000002]
[null,null,null,null,null,null,null,null,null,null,"Jun",1.4,6.8,1.4,3.1]
[null,null,null,null,null,null,null,null,null,null,"Jul",0.85,5.14,0.85,2.93]
[null,"Annual Performance Report 2022",null,null,null,null,null,null,null,null,"Aug",0.74,5.88,0.74,2.93]
[null,null,null,null,null,null,null,null,null,null,"Sep",1,3.68,1.02,1.6]
[null,null,null,null,null,null,null,null,null,null,"Oct",0.43,9.52,0.42,1.4]
[null,null,null,null,null,null,null,null,null,null,"Nov",0.69,8.26,0.69,1.45]
[null,null,null,null,null,null,null,null,null,null,"Dec",0.8,8.8000000000000007,0.81,1.84]
[null,null,null,null,null,null,null,null,null,null,"Annual",{"$f":"AVERAGE(L22:L33)","v":1.0466666666666666},{"$f":"MAX(M22:M33)","v":13.43},{"$f":"AVERAGE(N22:N33)","v":1.0541666666666667},{"$f":"MAX(O22:O33)","v":3.1}]
[]
[null,null,null,null,null,null,null,null,null,{"$f":"+A6","v":2021},"mg/Nm3","Monthly 1/2 hourly mean","Monthly 1/2 hourly maximum","Monthly daily mean","Monthly daily maximum"]
[null,null,null,null,null,null,null,null,null,"A3","Jan",0.94,3.47,0.94,1.55]
[null,null,null,null,null,null,null,null,null,null,"Feb",0.81,2.1800000000000002,0.82,1.08]
[null,null,2021,null,null,null,null,null,null,null,"Mar",1.01,6.72,1.02,1.7]
[null,null,null,null,null,null,null,null,null,null,"Apr",1.05,5.82,1.06,1.88]
[null,null,null,null,null,null,null,null,null,null,"May",0.91,4.99,0.92,2.5099999999999998]
[null,null,null,null,null,null,null,null,null,null,"Jun",0.55000000000000004,2.62,0.56000000000000005,0.86]
[null,null,null,null,null,null,null,null,null,null,"Jul",0.74,6.06,0.76,1.0900000000000001]
[null,null,null,null,null,null,null,null,null,null,"Aug",0.89,2.89,0.89,1.45]
[null,null,null,null,null,null,null,null,null,null,"Sep",0.75,6.5,0.78,1.32]
[null,null,null,null,null,null,null,null,null,null,"Oct",0.59,1.93,0.62,0.88]
[null,null,null,null,null,null,null,null,null,null,"Nov",0.79,3.1,0.8,1.1599999999999999]
["Comments :",null,null,null,null,null,null,null,null,null,"Dec",0.75,4.71,0.74,0.95]
[null,null,null,null,null,null,null,null,null,null,"Annual",{"$f":"AVERAGE(L37:L48)","v":0.81500000000000006},{"$f":"MAX(M37:M48)","v":6.72},{"$f":"AVERAGE(N37:N48)","v":0.82583333333333331},{"$f":"MAX(O37:O48)","v":2.5099999999999998}]
[]
[null,null,null,null,null,null,null,null,null,{"$f":"+A6","v":2021},"mg/Nm3","Monthly 1/2 hourly mean","Monthly 1/2 hourly maximum","Monthly daily mean","Monthly daily maximum"]
[null,null,null,null,null,null,null,null,null,"A4","Jan"]
[null,null,"2022-01-31",null,null,null,null,null,null,null,"Feb"]
[null,null,null,null,null,null,null,null,null,null,"Mar"]
[null,null,null,null,null,null,null,null,null,null,"Apr"]
[null,null,null,null,null,null,null,null,null,null,"May"]
[null,null,null,null,null,null,null,null,null,null,"Jun"]
[null,null,null,null,null,null,null,null,null,null,"Jul"]
[null,null,null,null,null,null,null,null,null,null,"Aug"]
[null,null,null,null,null,null,null,null,null,null,"Sep"]
[null,null,null,null,null,null,null,null,null,null,"Oct"]
[null,null,null,null,null,null,null,null,null,null,"Nov"]
[null,null,null,null,null,null,null,null,null,null,"Dec"]
[null,null,null,null,null,null,null,null,null,null,"Annual",{"$f":"AVERAGE(L52:L63)","v":{"$error":"#DIV/0!"}},{"$f":"MAX(M52:M63)","v":0},{"$f":"AVERAGE(N52:N63)","v":{"$error":"#DIV/0!"}},{"$f":"MAX(O52:O63)","v":0}]
[]
[null,null,null,null,null,null,null,null,null,{"$f":"+A6","v":2021},"mg/Nm3","Monthly 1/2 hourly mean","Monthly 1/2 hourly maximum","Monthly daily mean","Monthly daily maximum"]
[null,null,null,null,null,null,null,null,null,"A5","Jan"]
[null,null,null,null,null,null,null,null,null,null,"Feb"]
[null,null,null,null,null,null,null,null,null,null,"Mar"]
[null,null,null,null,null,null,null,null,null,null,"Apr"]
[null,null,null,null,null,null,null,null,null,null,"May"]
[null,null,null,null,null,null,null,null,null,null,"Jun"]
[null,null,null,null,null,null,null,null,null,null,"Jul"]
[null,null,null,null,null,null,null,null,null,null,"Aug"]
[null,null,null,null,null,null,null,null,null,null,"Sep"]
[null,null,null,null,null,null,null,null,null,null,"Oct"]
[null,null,null,null,null,null,null,null,null,null,"Nov"]
[null,null,null,null,null,null,null,null,null,null,"Dec"]
[null,null,null,null,null,null,null,null,null,null,"Annual",{"$f":"AVERAGE(L67:L78)","v":{"$error":"#DIV/0!"}},{"$f":"MAX(M67:M78)","v":0},{"$f":"AVERAGE(N67:N78)","v":{"$error":"#DIV/0!"}},{"$f":"MAX(O67:O78)","v":0}]

{"sheet":"SO2","index":15,"n_rows":79,"n_cols":17,"rows_kept":79,"cut":false,"hidden":false,"merged":[[3,16,7,18],[9,16,11,18],[12,16,15,18],[66,9,78,9],[4,1,4,3],[4,4,4,6],[4,9,4,14],[6,9,18,9],[21,9,33,9],[36,9,48,9],[47,0,47,6],[48,0,51,6],[51,9,63,9]]}
[{"$f":"+'Cover Page'!$B$29","v":"Annual Performance Report 2022"},null,null,null,{"$f":"+'Cover Page'!$B$33","v":"The Coventry And Solihull Waste Disposal Company Ltd"}]
[]
["Monitoring of Sulphur dioxide emissions",null,null,"Whole Installation",null,null,"See  Notes in Cell Q3",null,null,{"$f":"+A3","v":"Monitoring of Sulphur dioxide emissions"},null,null,null,"Per Combustion Line",null,null,"Notes:"]
[null,null,null,null,null,null,null,null,null,null,null,null,null,null,null,null,"User to add logic to complete Whole installation, Table A5:G18. From the data in Per Combustion Line, Table J6:O79, subject to No. of lines installed"]
["mg/Nm3","1/2 Hourly Reference Periods",null,null,"Daily Reference Periods"]
[{"$f":"+'Cover Page'!C39","v":2021},"1/2 hourly SO2 ELV","Monthly 1/2 hourly mean","Highest 1/2 hourly maximum","Daily SO2 ELV","Monthly daily mean","Highest daily maximum",null,null,{"$f":"+A6","v":2021},"mg/Nm3","Monthly 1/2 hourly mean","Monthly 1/2 hourly maximum","Monthly daily mean","Monthly daily maximum"]
["Jan",200,28.05,102.65,50,27.93,45.07,null,null,"A1","Jan",22.39,79.91,22.46,41.75]
["Feb",200,35.61,123.36,50,35.78,44.06,null,null,null,"Feb",29.11,123.36,29.32,38.46]
["Mar",200,37.5,166.01,50,37.86,44.54,null,null,null,"Mar",30.58,115.24,31.66,42.19,null,"Whole Installation table A5:G18:"]
["Apr",200,38.58,108.92,50,38.43,44.15,null,null,null,"Apr",35.85,78.489999999999995,35.71,41.74,null,"Mean: for 1/2 hourly and daily periods calculate mean of values across all operational combustion lines for the month"]
["May",200,40.130000000000003,129.38999999999999,50,40.159999999999997,44.66,null,null,null,"May",37.659999999999997,99.24,37.65,42.84]
["Jun",200,39.479999999999997,146.85,50,39.700000000000003,44.46,null,null,null,"Jun",37.96,107.21,38.090000000000003,43.61]
["Jul",200,39.57,141.29,50,39.82,45.59,null,null,null,"Jul",40.76,132.81,40.71,44.4,null,"Maximum: for 1/2 hourly and daily periods use the highest value across all operational combustion lines for the month"]
["Aug",200,40.76,131.13,50,40.93,47.97,null,null,null,"Aug",43.32,131.13,43.34,47.97]
["Sep",200,39.71,124.1,50,39.979999999999997,46.5,null,null,null,"Sep",42.9,124.1,42.95,46.5]
["Oct",200,35.11,144.07,50,36.47,43.94,null,null,null,"Oct",41.06,97.8,42.61,43.94]
["Nov",200,37.54,118.26,50,37.700000000000003,45.78,null,null,null,"Nov",43.53,118.26,43.53,45.78]
["Dec",200,38,118.35,50,38.11,45.98,null,null,null,"Dec",42.72,91.57,42.94,45.98]
[null,null,null,null,null,null,null,null,null,null,"Annual",{"$f":"AVERAGE(L7:L18)","v":37.32},{"$f":"MAX(M7:M18)","v":132.81},{"$f":"AVERAGE(N7:N18)","v":37.580833333333338},{"$f":"MAX(O7:O18)","v":47.97}]
[]
[null,null,null,null,null,null,null,null,null,{"$f":"+A6","v":2021},"mg/Nm3","Monthly 1/2 hourly mean","Monthly 1/2 hourly maximum","Monthly daily mean","Monthly daily maximum"]
[null,null,null,null,null,null,null,null,null,"A2","Jan",41.38,102.65,41.42,45.07]
[null,null,null,null,null,null,null,null,null,null,"Feb",40.549999999999997,104.36,40.78,44.06]
[null,null,null,null,null,null,null,null,null,null,"Mar",41.04,129.34,40.96,44.54]
[null,null,null,null,null,null,null,null,null,null,"Apr",40.130000000000003,76.02,40.049999999999997,43.27]
[null,null,null,null,null,null,null,null,null,null,"May",41.84,129.38999999999999,41.85,44.55]
[null,null,null,null,null,null,null,null,null,null,"Jun",41.58,146.85,41.58,44.46]
[null,null,null,null,null,null,null,null,null,null,"Jul",40.22,141.29,40.630000000000003,45.59]
[null,"Annual Performance Report 2022",null,null,null,null,null,null,null,null,"Aug",40.74,124.77,41.35,44.1]
[null,null,null,null,null,null,null,null,null,null,"Sep",39.29,119.85,39.840000000000003,43.11]
[null,null,null,null,null,null,null,null,null,null,"Oct",33.82,144.07,34.450000000000003,43.56]
[null,null,null,null,null,null,null,null,null,null,"Nov",37.450000000000003,95.33,37.450000000000003,43.28]
[null,null,null,null,null,null,null,null,null,null,"Dec",38.520000000000003,118.35,38.79,44.2]
[null,null,null,null,null,null,null,null,null,null,"Annual",{"$f":"AVERAGE(L22:L33)","v":39.713333333333331},{"$f":"MAX(M22:M33)","v":146.85},{"$f":"AVERAGE(N22:N33)","v":39.929166666666667},{"$f":"MAX(O22:O33)","v":45.59}]
[]
[null,null,null,null,null,null,null,null,null,{"$f":"+A6","v":2021},"mg/Nm3","Monthly 1/2 hourly mean","Monthly 1/2 hourly maximum","Monthly daily mean","Monthly daily maximum"]
[null,null,null,null,null,null,null,null,null,"A3","Jan",23.93,80.069999999999993,24.3,38.39]
[null,null,null,null,null,null,null,null,null,null,"Feb",37.15,98.24,37.31,42.31]
[null,null,2021,null,null,null,null,null,null,null,"Mar",38.950000000000003,166.01,38.909999999999997,44.04]
[null,null,null,null,null,null,null,null,null,null,"Apr",40.270000000000003,108.92,40.299999999999997,44.15]
[null,null,null,null,null,null,null,null,null,null,"May",41.16,99.74,41.33,44.66]
[null,null,null,null,null,null,null,null,null,null,"Jun",38.76,143.02000000000001,39.18,43.84]
[null,null,null,null,null,null,null,null,null,null,"Jul",37.96,110.14,38.380000000000003,42.18]
[null,null,null,null,null,null,null,null,null,null,"Aug",38.22,116.73,38.21,43.97]
[null,null,null,null,null,null,null,null,null,null,"Sep",36.81,110.9,37.17,42.65]
[null,null,null,null,null,null,null,null,null,null,"Oct",33.76,126.35,36.03,42.39]
[null,null,null,null,null,null,null,null,null,null,"Nov",30.68,78,31,40.11]
["Comments :",null,null,null,null,null,null,null,null,null,"Dec",29.98,96.46,29.95,40.25]
[null,null,null,null,null,null,null,null,null,null,"Annual",{"$f":"AVERAGE(L37:L48)","v":35.635833333333331},{"$f":"MAX(M37:M48)","v":166.01},{"$f":"AVERAGE(N37:N48)","v":36.005833333333335},{"$f":"MAX(O37:O48)","v":44.66}]
[]
[null,null,null,null,null,null,null,null,null,{"$f":"+A6","v":2021},"mg/Nm3","Monthly 1/2 hourly mean","Monthly 1/2 hourly maximum","Monthly daily mean","Monthly daily maximum"]
[null,null,null,null,null,null,null,null,null,"A4","Jan"]
[null,null,"2022-01-31",null,null,null,null,null,null,null,"Feb"]
[null,null,null,null,null,null,null,null,null,null,"Mar"]
[null,null,null,null,null,null,null,null,null,null,"Apr"]
[null,null,null,null,null,null,null,null,null,null,"May"]
[null,null,null,null,null,null,null,null,null,null,"Jun"]
[null,null,null,null,null,null,null,null,null,null,"Jul"]
[null,null,null,null,null,null,null,null,null,null,"Aug"]
[null,null,null,null,null,null,null,null,null,null,"Sep"]
[null,null,null,null,null,null,null,null,null,null,"Oct"]
[null,null,null,null,null,null,null,null,null,null,"Nov"]
[null,null,null,null,null,null,null,null,null,null,"Dec"]
[null,null,null,null,null,null,null,null,null,null,"Annual",{"$f":"AVERAGE(L52:L63)","v":{"$error":"#DIV/0!"}},{"$f":"MAX(M52:M63)","v":0},{"$f":"AVERAGE(N52:N63)","v":{"$error":"#DIV/0!"}},{"$f":"MAX(O52:O63)","v":0}]
[]
[null,null,null,null,null,null,null,null,null,{"$f":"+A6","v":2021},"mg/Nm3","Monthly 1/2 hourly mean","Monthly 1/2 hourly maximum","Monthly daily mean","Monthly daily maximum"]
[null,null,null,null,null,null,null,null,null,"A5","Jan"]
[null,null,null,null,null,null,null,null,null,null,"Feb"]
[null,null,null,null,null,null,null,null,null,null,"Mar"]
[null,null,null,null,null,null,null,null,null,null,"Apr"]
[null,null,null,null,null,null,null,null,null,null,"May"]
[null,null,null,null,null,null,null,null,null,null,"Jun"]
[null,null,null,null,null,null,null,null,null,null,"Jul"]
[null,null,null,null,null,null,null,null,null,null,"Aug"]
[null,null,null,null,null,null,null,null,null,null,"Sep"]
[null,null,null,null,null,null,null,null,null,null,"Oct"]
[null,null,null,null,null,null,null,null,null,null,"Nov"]
[null,null,null,null,null,null,null,null,null,null,"Dec"]
[null,null,null,null,null,null,null,null,null,null,"Annual",{"$f":"AVERAGE(L67:L78)","v":{"$error":"#DIV/0!"}},{"$f":"MAX(M67:M78)","v":0},{"$f":"AVERAGE(N67:N78)","v":{"$error":"#DIV/0!"}},{"$f":"MAX(O67:O78)","v":0}]

{"sheet":"NOx","index":16,"n_rows":79,"n_cols":17,"rows_kept":79,"cut":false,"hidden":false,"merged":[[3,16,7,18],[9,16,11,18],[12,16,15,18],[66,9,78,9],[4,1,4,3],[4,4,4,6],[4,9,4,14],[6,9,18,9],[21,9,33,9],[36,9,48,9],[47,0,47,6],[48,0,51,6],[51,9,63,9]]}
[{"$f":"+'Cover Page'!$B$29","v":"Annual Performance Report 2022"},null,null,null,{"$f":"+'Cover Page'!$B$33","v":"The Coventry And Solihull Waste Disposal Company Ltd"}]
[]
["Monitoring of Oxides of Nitrogen emissions",null,null,"Whole Installation",null,null,"See  Notes in Cell Q3",null,null,{"$f":"+A3","v":"Monitoring of Oxides of Nitrogen emissions"},null,null,null,"Per Combustion Line",null,null,"Notes:"]
[null,null,null,null,null,null,null,null,null,null,null,null,null,null,null,null,"User to add logic to complete Whole installation, Table A5:G18. From the data in Per Combustion Line, Table J6:O79, subject to No. of lines installed"]
["mg/Nm3","1/2 Hourly Reference Periods",null,null,"Daily Reference Periods"]
[{"$f":"+'Cover Page'!C39","v":2021},"1/2 hourly NOx ELV","Monthly 1/2 hourly mean","Highest 1/2 hourly maximum","Daily NOx ELV","Monthly daily mean","Highest daily maximum",null,null,{"$f":"+A6","v":2021},"mg/Nm3","Monthly 1/2 hourly mean","Monthly 1/2 hourly maximum","Monthly daily mean","Monthly daily maximum"]
["Jan",400,180.84,308.52999999999997,200,181.06,192.57,null,null,"A1","Jan",187.2,268.14999999999998,187.09,192.57]
["Feb",400,172.15,258.44,200,172.4,183.94,null,null,null,"Feb",171.92,241.97,172.17,181.17]
["Mar",400,182.55,305.81,200,182.76,196.07,null,null,null,"Mar",184.56,280.17,185.79,193.08,null,"Whole Installation table A5:G18:"]
["Apr",400,177.8,306.27,200,177.88,193.35,null,null,null,"Apr",180.12,285,180.04,191.5,null,"Mean: for 1/2 hourly and daily periods calculate mean of values across all operational combustion lines for the month"]
["May",400,181.23,293.12,200,181.31,195.34,null,null,null,"May",183.55,293.12,183.56,193.39]
["Jun",400,184.57,310.72000000000003,200,184.76,193.5,null,null,null,"Jun",185.53,278.63,185.66,193.5]
["Jul",400,184.93,321.55,200,185.12,195.08,null,null,null,"Jul",184.68,321.55,184.52,194.74,null,"Maximum: for 1/2 hourly and daily periods use the highest value across all operational combustion lines for the month"]
["Aug",400,187.17,274.19,200,187.28,196.57,null,null,null,"Aug",188.98,217.59,188.98,196.57]
["Sep",400,184.52,333.45,200,184.38,192.56,null,null,null,"Sep",187.47,333.45,187.25,192.56]
["Oct",400,174.21,293.79000000000002,200,175.36,193.28,null,null,null,"Oct",185.78,293.79000000000002,188.35,193.28]
["Nov",400,176.27,295.77999999999997,200,176.37,197.42,null,null,null,"Nov",189.55,295.77999999999997,189.57,197.42]
["Dec",400,187.15,284.79000000000002,200,187.21,198.46,null,null,null,"Dec",189.53,245.53,189.55,197.1]
[null,null,null,null,null,null,null,null,null,null,"Annual",{"$f":"AVERAGE(L7:L18)","v":184.90583333333336},{"$f":"MAX(M7:M18)","v":333.45},{"$f":"AVERAGE(N7:N18)","v":185.21083333333331},{"$f":"MAX(O7:O18)","v":197.42}]
[]
[null,null,null,null,null,null,null,null,null,{"$f":"+A6","v":2021},"mg/Nm3","Monthly 1/2 hourly mean","Monthly 1/2 hourly maximum","Monthly daily mean","Monthly daily maximum"]
[null,null,null,null,null,null,null,null,null,"A2","Jan",181.66,308.52999999999997,181.91,191.37]
[null,null,null,null,null,null,null,null,null,null,"Feb",172.01,258.44,172.09,179.14]
[null,null,null,null,null,null,null,null,null,null,"Mar",185.45,305.81,185.4,196.07]
[null,null,null,null,null,null,null,null,null,null,"Apr",182.93,306.27,184.05,193.35]
[null,null,null,null,null,null,null,null,null,null,"May",182.38,284.72000000000003,182.37,191.97]
[null,null,null,null,null,null,null,null,null,null,"Jun",185.92,310.72000000000003,185.9,192.47]
[null,null,null,null,null,null,null,null,null,null,"Jul",184.1,307.31,184.68,191.67]
[null,"Annual Performance Report 2022",null,null,null,null,null,null,null,null,"Aug",185.4,263.45,185.74,193.18]
[null,null,null,null,null,null,null,null,null,null,"Sep",182.15,283.77999999999997,182.37,192.37]
[null,null,null,null,null,null,null,null,null,null,"Oct",162.78,243.44,164.41,179.33]
[null,null,null,null,null,null,null,null,null,null,"Nov",163.15,253.79,163.15,191.77]
[null,null,null,null,null,null,null,null,null,null,"Dec",186.97,239.89,186.98,198.46]
[null,null,null,null,null,null,null,null,null,null,"Annual",{"$f":"AVERAGE(L22:L33)","v":179.57500000000002},{"$f":"MAX(M22:M33)","v":310.72000000000003},{"$f":"AVERAGE(N22:N33)","v":179.92083333333335},{"$f":"MAX(O22:O33)","v":198.46}]
[]
[null,null,null,null,null,null,null,null,null,{"$f":"+A6","v":2021},"mg/Nm3","Monthly 1/2 hourly mean","Monthly 1/2 hourly maximum","Monthly daily mean","Monthly daily maximum"]
[null,null,null,null,null,null,null,null,null,"A3","Jan",173.93,270.66000000000003,174.24,190.09]
[null,null,null,null,null,null,null,null,null,null,"Feb",172.53,240.39,172.95,183.94]
[null,null,2021,null,null,null,null,null,null,null,"Mar",178.46,279.86,178.36,191.43]
[null,null,null,null,null,null,null,null,null,null,"Apr",172.01,273.11,172.02,189.71]
[null,null,null,null,null,null,null,null,null,null,"May",176.48,280.01,176.65,195.34]
[null,null,null,null,null,null,null,null,null,null,"Jun",181.77,267.36,182.08,193.27]
[null,null,null,null,null,null,null,null,null,null,"Jul",185.81,310.61,186.01,195.08]
[null,null,null,null,null,null,null,null,null,null,"Aug",187.02,274.19,187.03,194.75]
[null,null,null,null,null,null,null,null,null,null,"Sep",183.77,296.51,183.52,190.57]
[null,null,null,null,null,null,null,null,null,null,"Oct",180.78,257.04000000000002,181.12,189.2]
[null,null,null,null,null,null,null,null,null,null,"Nov",176.18,263.8,176.4,189.14]
["Comments :",null,null,null,null,null,null,null,null,null,"Dec",183.77,284.79000000000002,184.12,193]
[null,null,null,null,null,null,null,null,null,null,"Annual",{"$f":"AVERAGE(L37:L48)","v":179.37583333333336},{"$f":"MAX(M37:M48)","v":310.61},{"$f":"AVERAGE(N37:N48)","v":179.54166666666666},{"$f":"MAX(O37:O48)","v":195.34}]
[]
[null,null,null,null,null,null,null,null,null,{"$f":"+A6","v":2021},"mg/Nm3","Monthly 1/2 hourly mean","Monthly 1/2 hourly maximum","Monthly daily mean","Monthly daily maximum"]
[null,null,null,null,null,null,null,null,null,"A4","Jan"]
[null,null,"2022-01-31",null,null,null,null,null,null,null,"Feb"]
[null,null,null,null,null,null,null,null,null,null,"Mar"]
[null,null,null,null,null,null,null,null,null,null,"Apr"]
[null,null,null,null,null,null,null,null,null,null,"May"]
[null,null,null,null,null,null,null,null,null,null,"Jun"]
[null,null,null,null,null,null,null,null,null,null,"Jul"]
[null,null,null,null,null,null,null,null,null,null,"Aug"]
[null,null,null,null,null,null,null,null,null,null,"Sep"]
[null,null,null,null,null,null,null,null,null,null,"Oct"]
[null,null,null,null,null,null,null,null,null,null,"Nov"]
[null,null,null,null,null,null,null,null,null,null,"Dec"]
[null,null,null,null,null,null,null,null,null,null,"Annual",{"$f":"AVERAGE(L52:L63)","v":{"$error":"#DIV/0!"}},{"$f":"MAX(M52:M63)","v":0},{"$f":"AVERAGE(N52:N63)","v":{"$error":"#DIV/0!"}},{"$f":"MAX(O52:O63)","v":0}]
[]
[null,null,null,null,null,null,null,null,null,{"$f":"+A6","v":2021},"mg/Nm3","Monthly 1/2 hourly mean","Monthly 1/2 hourly maximum","Monthly daily mean","Monthly daily maximum"]
[null,null,null,null,null,null,null,null,null,"A5","Jan"]
[null,null,null,null,null,null,null,null,null,null,"Feb"]
[null,null,null,null,null,null,null,null,null,null,"Mar"]
[null,null,null,null,null,null,null,null,null,null,"Apr"]
[null,null,null,null,null,null,null,null,null,null,"May"]
[null,null,null,null,null,null,null,null,null,null,"Jun"]
[null,null,null,null,null,null,null,null,null,null,"Jul"]
[null,null,null,null,null,null,null,null,null,null,"Aug"]
[null,null,null,null,null,null,null,null,null,null,"Sep"]
[null,null,null,null,null,null,null,null,null,null,"Oct"]
[null,null,null,null,null,null,null,null,null,null,"Nov"]
[null,null,null,null,null,null,null,null,null,null,"Dec"]
[null,null,null,null,null,null,null,null,null,null,"Annual",{"$f":"AVERAGE(L67:L78)","v":{"$error":"#DIV/0!"}},{"$f":"MAX(M67:M78)","v":0},{"$f":"AVERAGE(N67:N78)","v":{"$error":"#DIV/0!"}},{"$f":"MAX(O67:O78)","v":0}]

{"sheet":"TOC","index":17,"n_rows":79,"n_cols":17,"rows_kept":79,"cut":false,"hidden":false,"merged":[[3,16,7,18],[9,16,11,18],[12,16,15,18],[66,9,78,9],[4,1,4,3],[4,4,4,6],[4,9,4,14],[6,9,18,9],[21,9,33,9],[36,9,48,9],[47,0,47,6],[48,0,51,6],[51,9,63,9]]}
[{"$f":"+'Cover Page'!$B$29","v":"Annual Performance Report 2022"},null,null,null,{"$f":"+'Cover Page'!$B$33","v":"The Coventry And Solihull Waste Disposal Company Ltd"}]
[]
["Monitoring of Total organic carbon emissions",null,null,"Whole Installation",null,null,"See  Notes in Cell Q3",null,null,{"$f":"+A3","v":"Monitoring of Total organic carbon emissions"},null,null,null,"Per Combustion Line",null,null,"Notes:"]
[null,null,null,null,null,null,null,null,null,null,null,null,null,null,null,null,"User to add logic to complete Whole installation, Table A5:G18. From the data in Per Combustion Line, Table J6:O79, subject to No. of lines installed"]
["mg/Nm3","1/2 Hourly Reference Periods",null,null,"Daily Reference Periods"]
[{"$f":"+'Cover Page'!C39","v":2021},"1/2 hourly TOC ELV","Monthly 1/2 hourly mean","Highest 1/2 hourly maximum","Daily TOC ELV","Monthly daily mean","Highest daily maximum",null,null,{"$f":"+A6","v":2021},"mg/Nm3","Monthly 1/2 hourly mean","Monthly 1/2 hourly maximum","Monthly daily mean","Monthly daily maximum"]
["Jan",20,0.28999999999999998,7.01,10,0.3,1.22,null,null,"A1","Jan",0.5,3.01,0.5,1.22]
["Feb",20,0.95,7.89,10,0.95,4.09,null,null,null,"Feb",1.42,5.37,1.41,4.09]
["Mar",20,0.76,4.5199999999999996,10,0.76,1.17,null,null,null,"Mar",0.78,2.86,0.8,0.96,null,"Whole Installation table A5:G18:"]
["Apr",20,0.89,4.75,10,0.88,1.43,null,null,null,"Apr",1,2.96,1,1.28,null,"Mean: for 1/2 hourly and daily periods calculate mean of values across all operational combustion lines for the month"]
["May",20,0.92,3.46,10,0.92,1.25,null,null,null,"May",1.06,3.46,1.06,1.25]
["Jun",20,0.43,4.79,10,0.41,1.7,null,null,null,"Jun",0.63,3.29,0.63,1.19]
["Jul",20,0.56999999999999995,6.43,10,0.56999999999999995,1.48,null,null,null,"Jul",0.51,2.5299999999999998,0.52,0.93,null,"Maximum: for 1/2 hourly and daily periods use the highest value across all operational combustion lines for the month"]
["Aug",20,0.55000000000000004,4.79,10,0.55000000000000004,1.41,null,null,null,"Aug",0.41,1.73,0.41,1.2]
["Sep",20,0.31,5.35,10,0.31,0.7,null,null,null,"Sep",0.41,2.41,0.41,0.64]
["Oct",20,0.48,3.62,10,0.48,0.77,null,null,null,"Oct",0.48,2.4300000000000002,0.5,0.71]
["Nov",20,0.56000000000000005,3.7,10,0.56000000000000005,1.53,null,null,null,"Nov",0.47,1.45,0.47,0.55000000000000004]
["Dec",20,0.5,10.220000000000001,10,0.5,1.04,null,null,null,"Dec",0.66,4.6399999999999997,0.66,1.04]
[null,null,null,null,null,null,null,null,null,null,"Annual",{"$f":"AVERAGE(L7:L18)","v":0.69416666666666649},{"$f":"MAX(M7:M18)","v":5.37},{"$f":"AVERAGE(N7:N18)","v":0.6974999999999999},{"$f":"MAX(O7:O18)","v":4.09}]
[]
[null,null,null,null,null,null,null,null,null,{"$f":"+A6","v":2021},"mg/Nm3","Monthly 1/2 hourly mean","Monthly 1/2 hourly maximum","Monthly daily mean","Monthly daily maximum"]
[null,null,null,null,null,null,null,null,null,"A2","Jan",0.23,2.5,0.25,0.96]
[null,null,null,null,null,null,null,null,null,null,"Feb",0.96,3.03,0.96,1.24]
[null,null,null,null,null,null,null,null,null,null,"Mar",0.96,4.5199999999999996,0.96,1.17]
[null,null,null,null,null,null,null,null,null,null,"Apr",0.98,4.6500000000000004,0.99,1.43]
[null,null,null,null,null,null,null,null,null,null,"May",0.95,2.9,0.95,1.25]
[null,null,null,null,null,null,null,null,null,null,"Jun",-0.08,4.3899999999999997,-0.08,0.68]
[null,null,null,null,null,null,null,null,null,null,"Jul",0.05,1.72,0.05,0.41]
[null,"Annual Performance Report 2022",null,null,null,null,null,null,null,null,"Aug",0.33,3.38,0.33,0.74]
[null,null,null,null,null,null,null,null,null,null,"Sep",0.22,5.35,0.22,0.7]
[null,null,null,null,null,null,null,null,null,null,"Oct",0.47,3.62,0.47,0.77]
[null,null,null,null,null,null,null,null,null,null,"Nov",0.64,3.7,0.64,1.53]
[null,null,null,null,null,null,null,null,null,null,"Dec",0.31,2.76,0.31,1.02]
[null,null,null,null,null,null,null,null,null,null,"Annual",{"$f":"AVERAGE(L22:L33)","v":0.50166666666666659},{"$f":"MAX(M22:M33)","v":5.35},{"$f":"AVERAGE(N22:N33)","v":0.50416666666666654},{"$f":"MAX(O22:O33)","v":1.53}]
[]
[null,null,null,null,null,null,null,null,null,{"$f":"+A6","v":2021},"mg/Nm3","Monthly 1/2 hourly mean","Monthly 1/2 hourly maximum","Monthly daily mean","Monthly daily maximum"]
[null,null,null,null,null,null,null,null,null,"A3","Jan",0.12,7.01,0.13,0.71]
[null,null,null,null,null,null,null,null,null,null,"Feb",0.47,7.89,0.46,0.7]
[null,null,2021,null,null,null,null,null,null,null,"Mar",0.56000000000000005,4.05,0.56000000000000005,0.9]
[null,null,null,null,null,null,null,null,null,null,"Apr",0.7,4.75,0.7,1.35]
[null,null,null,null,null,null,null,null,null,null,"May",0.68,1.78,0.68,1.02]
[null,null,null,null,null,null,null,null,null,null,"Jun",0.8,4.79,0.79,1.7]
[null,null,null,null,null,null,null,null,null,null,"Jul",1.02,6.43,1.02,1.48]
[null,null,null,null,null,null,null,null,null,null,"Aug",0.89,4.79,0.89,1.41]
[null,null,null,null,null,null,null,null,null,null,"Sep",0.31,0.99,0.31,0.54]
[null,null,null,null,null,null,null,null,null,null,"Oct",0.48,1.4,0.48,0.62]
[null,null,null,null,null,null,null,null,null,null,"Nov",0.56999999999999995,3.35,0.56999999999999995,0.74]
["Comments :",null,null,null,null,null,null,null,null,null,"Dec",0.55000000000000004,10.220000000000001,0.56000000000000005,0.98]
[null,null,null,null,null,null,null,null,null,null,"Annual",{"$f":"AVERAGE(L37:L48)","v":0.59583333333333333},{"$f":"MAX(M37:M48)","v":10.220000000000001},{"$f":"AVERAGE(N37:N48)","v":0.59583333333333333},{"$f":"MAX(O37:O48)","v":1.7}]
[]
[null,null,null,null,null,null,null,null,null,{"$f":"+A6","v":2021},"mg/Nm3","Monthly 1/2 hourly mean","Monthly 1/2 hourly maximum","Monthly daily mean","Monthly daily maximum"]
[null,null,null,null,null,null,null,null,null,"A4","Jan"]
[null,null,"2022-01-31",null,null,null,null,null,null,null,"Feb"]
[null,null,null,null,null,null,null,null,null,null,"Mar"]
[null,null,null,null,null,null,null,null,null,null,"Apr"]
[null,null,null,null,null,null,null,null,null,null,"May"]
[null,null,null,null,null,null,null,null,null,null,"Jun"]
[null,null,null,null,null,null,null,null,null,null,"Jul"]
[null,null,null,null,null,null,null,null,null,null,"Aug"]
[null,null,null,null,null,null,null,null,null,null,"Sep"]
[null,null,null,null,null,null,null,null,null,null,"Oct"]
[null,null,null,null,null,null,null,null,null,null,"Nov"]
[null,null,null,null,null,null,null,null,null,null,"Dec"]
[null,null,null,null,null,null,null,null,null,null,"Annual",{"$f":"AVERAGE(L52:L63)","v":{"$error":"#DIV/0!"}},{"$f":"MAX(M52:M63)","v":0},{"$f":"AVERAGE(N52:N63)","v":{"$error":"#DIV/0!"}},{"$f":"MAX(O52:O63)","v":0}]
[]
[null,null,null,null,null,null,null,null,null,{"$f":"+A6","v":2021},"mg/Nm3","Monthly 1/2 hourly mean","Monthly 1/2 hourly maximum","Monthly daily mean","Monthly daily maximum"]
[null,null,null,null,null,null,null,null,null,"A5","Jan"]
[null,null,null,null,null,null,null,null,null,null,"Feb"]
[null,null,null,null,null,null,null,null,null,null,"Mar"]
[null,null,null,null,null,null,null,null,null,null,"Apr"]
[null,null,null,null,null,null,null,null,null,null,"May"]
[null,null,null,null,null,null,null,null,null,null,"Jun"]
[null,null,null,null,null,null,null,null,null,null,"Jul"]
[null,null,null,null,null,null,null,null,null,null,"Aug"]
[null,null,null,null,null,null,null,null,null,null,"Sep"]
[null,null,null,null,null,null,null,null,null,null,"Oct"]
[null,null,null,null,null,null,null,null,null,null,"Nov"]
[null,null,null,null,null,null,null,null,null,null,"Dec"]
[null,null,null,null,null,null,null,null,null,null,"Annual",{"$f":"AVERAGE(L67:L78)","v":{"$error":"#DIV/0!"}},{"$f":"MAX(M67:M78)","v":0},{"$f":"AVERAGE(N67:N78)","v":{"$error":"#DIV/0!"}},{"$f":"MAX(O67:O78)","v":0}]

{"sheet":"Particulates","index":18,"n_rows":79,"n_cols":17,"rows_kept":79,"cut":false,"hidden":false,"merged":[[3,16,7,18],[9,16,11,18],[12,16,15,18],[66,9,78,9],[4,1,4,3],[4,4,4,6],[4,9,4,14],[6,9,18,9],[21,9,33,9],[36,9,48,9],[47,0,47,6],[48,0,51,6],[51,9,63,9]]}
[{"$f":"+'Cover Page'!$B$29","v":"Annual Performance Report 2022"},null,null,null,{"$f":"+'Cover Page'!$B$33","v":"The Coventry And Solihull Waste Disposal Company Ltd"}]
[]
["Monitoring of Particulate matter emissions",null,null,"Whole Installation",null,null,"See  Notes in Cell Q3",null,null,{"$f":"+A3","v":"Monitoring of Particulate matter emissions"},null,null,null,"Per Combustion Line",null,null,"Notes:"]
[null,null,null,null,null,null,null,null,null,null,null,null,null,null,null,null,"User to add logic to complete Whole installation, Table A5:G18. From the data in Per Combustion Line, Table J6:O79, subject to No. of lines installed"]
["mg/Nm3","1/2 Hourly Reference Periods",null,null,"Daily Reference Periods"]
[{"$f":"+'Cover Page'!C39","v":2021},"1/2 hourly PM ELV","Monthly 1/2 hourly mean","Highest 1/2 hourly maximum","Daily PM ELV","Monthly daily mean","Highest daily maximum",null,null,{"$f":"+A6","v":2021},"mg/Nm3","Monthly 1/2 hourly mean","Monthly 1/2 hourly maximum","Monthly daily mean","Monthly daily maximum"]
["Jan",30,0.5,1.8,10,0.5,0.92,null,null,"A1","Jan",0.48,1.18,0.48,0.52]
["Feb",30,0.44,0.68,10,0.44,0.54,null,null,null,"Feb",0.46,0.64,0.46,0.48]
["Mar",30,0.44,8.7799999999999994,10,0.43,0.53,null,null,null,"Mar",0.48,8.7799999999999994,0.45,0.46,null,"Whole Installation table A5:G18:"]
["Apr",30,0.47,26.39,10,0.46,1.98,null,null,null,"Apr",0.47,1.81,0.47,0.49,null,"Mean: for 1/2 hourly and daily periods calculate mean of values across all operational combustion lines for the month"]
["May",30,0.45,1.02,10,0.45,0.53,null,null,null,"May",0.46,0.61,0.46,0.49]
["Jun",30,0.45,2.11,10,0.46,0.54,null,null,null,"Jun",0.47,1.1000000000000001,0.47,0.52]
["Jul",30,0.41,1.66,10,0.41,0.55000000000000004,null,null,null,"Jul",0.41,0.72,0.41,0.45,null,"Maximum: for 1/2 hourly and daily periods use the highest value across all operational combustion lines for the month"]
["Aug",30,0.41,3.91,10,0.41,0.59,null,null,null,"Aug",0.42,0.85,0.42,0.59]
["Sep",30,0.61,5,10,0.61,2.72,null,null,null,"Sep",0.44,0.82,0.44,0.57999999999999996]
["Oct",30,0.9,6.45,10,0.98,2.99,null,null,null,"Oct",0.43,1.1000000000000001,0.42,0.47]
["Nov",30,1.1399999999999999,6.15,10,1.1399999999999999,4.33,null,null,null,"Nov",0.5,1.19,0.5,0.64]
["Dec",30,1.1399999999999999,5.56,10,1.1499999999999999,4.1399999999999997,null,null,null,"Dec",0.66,1.24,0.66,0.72]
[null,null,null,null,null,null,null,null,null,null,"Annual",{"$f":"AVERAGE(L7:L18)","v":0.47333333333333338},{"$f":"MAX(M7:M18)","v":8.7799999999999994},{"$f":"AVERAGE(N7:N18)","v":0.47000000000000003},{"$f":"MAX(O7:O18)","v":0.72}]
[]
[null,null,null,null,null,null,null,null,null,{"$f":"+A6","v":2021},"mg/Nm3","Monthly 1/2 hourly mean","Monthly 1/2 hourly maximum","Monthly daily mean","Monthly daily maximum"]
[null,null,null,null,null,null,null,null,null,"A2","Jan",0.79,1.8,0.78,0.92]
[null,null,null,null,null,null,null,null,null,null,"Feb",0.5,0.68,0.5,0.54]
[null,null,null,null,null,null,null,null,null,null,"Mar",0.5,0.79,0.5,0.53]
[null,null,null,null,null,null,null,null,null,null,"Apr",0.49,1.87,0.48,0.53]
[null,null,null,null,null,null,null,null,null,null,"May",0.5,1.02,0.5,0.53]
[null,null,null,null,null,null,null,null,null,null,"Jun",0.51,0.81,0.51,0.54]
[null,null,null,null,null,null,null,null,null,null,"Jul",0.44,1.66,0.43,0.55000000000000004]
[null,"Annual Performance Report 2022",null,null,null,null,null,null,null,null,"Aug",0.41,3.91,0.39,0.42]
[null,null,null,null,null,null,null,null,null,null,"Sep",0.39,2.71,0.38,0.45]
[null,null,null,null,null,null,null,null,null,null,"Oct",0.33,2.2200000000000002,0.32,0.37]
[null,null,null,null,null,null,null,null,null,null,"Nov",0.33,1.27,0.33,0.36]
[null,null,null,null,null,null,null,null,null,null,"Dec",0.4,0.8,0.4,0.56000000000000005]
[null,null,null,null,null,null,null,null,null,null,"Annual",{"$f":"AVERAGE(L22:L33)","v":0.46583333333333332},{"$f":"MAX(M22:M33)","v":3.91},{"$f":"AVERAGE(N22:N33)","v":0.46},{"$f":"MAX(O22:O33)","v":0.92}]
[]
[null,null,null,null,null,null,null,null,null,{"$f":"+A6","v":2021},"mg/Nm3","Monthly 1/2 hourly mean","Monthly 1/2 hourly maximum","Monthly daily mean","Monthly daily maximum"]
[null,null,null,null,null,null,null,null,null,"A3","Jan",0.32,1,0.32,0.46]
[null,null,null,null,null,null,null,null,null,null,"Feb",0.37,0.63,0.37,0.44]
[null,null,2021,null,null,null,null,null,null,null,"Mar",0.36,0.83,0.36,0.39]
[null,null,null,null,null,null,null,null,null,null,"Apr",0.46,26.39,0.43,1.98]
[null,null,null,null,null,null,null,null,null,null,"May",0.36,0.98,0.36,0.47]
[null,null,null,null,null,null,null,null,null,null,"Jun",0.37,2.11,0.37,0.42]
[null,null,null,null,null,null,null,null,null,null,"Jul",0.39,0.65,0.39,0.41]
[null,null,null,null,null,null,null,null,null,null,"Aug",0.41,1.47,0.41,0.56000000000000005]
[null,null,null,null,null,null,null,null,null,null,"Sep",1,5,1.01,2.72]
[null,null,null,null,null,null,null,null,null,null,"Oct",1.7,6.45,1.86,2.99]
[null,null,null,null,null,null,null,null,null,null,"Nov",2.85,6.15,2.9,4.33]
["Comments :",null,null,null,null,null,null,null,null,null,"Dec",3,5.56,3.01,4.1399999999999997]
[null,null,null,null,null,null,null,null,null,null,"Annual",{"$f":"AVERAGE(L37:L48)","v":0.96583333333333332},{"$f":"MAX(M37:M48)","v":26.39},{"$f":"AVERAGE(N37:N48)","v":0.98250000000000004},{"$f":"MAX(O37:O48)","v":4.33}]
[]
[null,null,null,null,null,null,null,null,null,{"$f":"+A6","v":2021},"mg/Nm3","Monthly 1/2 hourly mean","Monthly 1/2 hourly maximum","Monthly daily mean","Monthly daily maximum"]
[null,null,null,null,null,null,null,null,null,"A4","Jan"]
[null,null,"2022-01-31",null,null,null,null,null,null,null,"Feb"]
[null,null,null,null,null,null,null,null,null,null,"Mar"]
[null,null,null,null,null,null,null,null,null,null,"Apr"]
[null,null,null,null,null,null,null,null,null,null,"May"]
[null,null,null,null,null,null,null,null,null,null,"Jun"]
[null,null,null,null,null,null,null,null,null,null,"Jul"]
[null,null,null,null,null,null,null,null,null,null,"Aug"]
[null,null,null,null,null,null,null,null,null,null,"Sep"]
[null,null,null,null,null,null,null,null,null,null,"Oct"]
[null,null,null,null,null,null,null,null,null,null,"Nov"]
[null,null,null,null,null,null,null,null,null,null,"Dec"]
[null,null,null,null,null,null,null,null,null,null,"Annual",{"$f":"AVERAGE(L52:L63)","v":{"$error":"#DIV/0!"}},{"$f":"MAX(M52:M63)","v":0},{"$f":"AVERAGE(N52:N63)","v":{"$error":"#DIV/0!"}},{"$f":"MAX(O52:O63)","v":0}]
[]
[null,null,null,null,null,null,null,null,null,{"$f":"+A6","v":2021},"mg/Nm3","Monthly 1/2 hourly mean","Monthly 1/2 hourly maximum","Monthly daily mean","Monthly daily maximum"]
[null,null,null,null,null,null,null,null,null,"A5","Jan"]
[null,null,null,null,null,null,null,null,null,null,"Feb"]
[null,null,null,null,null,null,null,null,null,null,"Mar"]
[null,null,null,null,null,null,null,null,null,null,"Apr"]
[null,null,null,null,null,null,null,null,null,null,"May"]
[null,null,null,null,null,null,null,null,null,null,"Jun"]
[null,null,null,null,null,null,null,null,null,null,"Jul"]
[null,null,null,null,null,null,null,null,null,null,"Aug"]
[null,null,null,null,null,null,null,null,null,null,"Sep"]
[null,null,null,null,null,null,null,null,null,null,"Oct"]
[null,null,null,null,null,null,null,null,null,null,"Nov"]
[null,null,null,null,null,null,null,null,null,null,"Dec"]
[null,null,null,null,null,null,null,null,null,null,"Annual",{"$f":"AVERAGE(L67:L78)","v":{"$error":"#DIV/0!"}},{"$f":"MAX(M67:M78)","v":0},{"$f":"AVERAGE(N67:N78)","v":{"$error":"#DIV/0!"}},{"$f":"MAX(O67:O78)","v":0}]

{"sheet":"CO 0.5hourly","index":19,"n_rows":79,"n_cols":17,"rows_kept":79,"cut":false,"hidden":false,"merged":[[3,16,7,18],[9,16,11,18],[12,16,15,18],[66,9,78,9],[4,1,4,3],[4,4,4,6],[4,9,4,14],[6,9,18,9],[21,9,33,9],[36,9,48,9],[47,0,47,6],[48,0,51,6],[51,9,63,9]]}
[{"$f":"+'Cover Page'!$B$29","v":"Annual Performance Report 2022"},null,null,null,{"$f":"+'Cover Page'!$B$33","v":"The Coventry And Solihull Waste Disposal Company Ltd"}]
[]
["Monitoring of Carbon Monoxide (half hourly)",null,null,"Whole Installation",null,null,"See  Notes in Cell Q3",null,null,{"$f":"+A3","v":"Monitoring of Carbon Monoxide (half hourly)"},null,null,null,"Per Combustion Line",null,null,"Notes:"]
[null,null,null,null,null,null,null,null,null,null,null,null,null,null,null,null,"User to add logic to complete Whole installation, Table A5:G18. From the data in Per Combustion Line, Table J6:O79, subject to No. of lines installed"]
["mg/Nm3","1/2 Hourly Reference Periods",null,null,"Daily Reference Periods"]
[{"$f":"+'Cover Page'!C39","v":2021},"1/2 hourly CO ELV","Monthly 1/2 hourly mean","Highest 1/2 hourly maximum","Daily CO ELV","Monthly daily mean","Highest daily maximum",null,null,{"$f":"+A6","v":2021},"mg/Nm3","Monthly 1/2 hourly mean","Monthly 1/2 hourly maximum","Monthly daily mean","Monthly daily maximum"]
["Jan",100,null,null,50,null,null,null,null,"A1","Jan"]
["Feb",{"$f":"+B7","v":100},null,null,{"$f":"+E7","v":50},null,null,null,null,null,"Feb"]
["Mar",{"$f":"+B8","v":100},null,null,{"$f":"+E8","v":50},null,null,null,null,null,"Mar",null,null,null,null,null,"Whole Installation table A5:G18:"]
["Apr",100,null,null,50,null,null,null,null,null,"Apr",null,null,null,null,null,"Mean: for 1/2 hourly and daily periods calculate mean of values across all operational combustion lines for the month"]
["May",100,null,null,50,null,null,null,null,null,"May"]
["Jun",100,null,null,50,null,null,null,null,null,"Jun"]
["Jul",100,null,null,50,null,null,null,null,null,"Jul",null,null,null,null,null,"Maximum: for 1/2 hourly and daily periods use the highest value across all operational combustion lines for the month"]
["Aug",100,null,null,50,null,null,null,null,null,"Aug"]
["Sep",100,null,null,50,null,null,null,null,null,"Sep"]
["Oct",100,null,null,50,null,null,null,null,null,"Oct"]
["Nov",100,null,null,50,null,null,null,null,null,"Nov"]
["Dec",100,null,null,50,null,null,null,null,null,"Dec"]
[null,null,null,null,null,null,null,null,null,null,"Annual",{"$f":"AVERAGE(L7:L18)","v":{"$error":"#DIV/0!"}},{"$f":"MAX(M7:M18)","v":0},{"$f":"AVERAGE(N7:N18)","v":{"$error":"#DIV/0!"}},{"$f":"MAX(O7:O18)","v":0}]
[]
[null,null,null,null,null,null,null,null,null,{"$f":"+A6","v":2021},"mg/Nm3","Monthly 1/2 hourly mean","Monthly 1/2 hourly maximum","Monthly daily mean","Monthly daily maximum"]
[null,null,null,null,null,null,null,null,null,"A2","Jan"]
[null,null,null,null,null,null,null,null,null,null,"Feb"]
[null,null,null,null,null,null,null,null,null,null,"Mar"]
[null,null,null,null,null,null,null,null,null,null,"Apr"]
[null,null,null,null,null,null,null,null,null,null,"May"]
[null,null,null,null,null,null,null,null,null,null,"Jun"]
[null,null,null,null,null,null,null,null,null,null,"Jul"]
[null,"Annual Performance Report 2022",null,null,null,null,null,null,null,null,"Aug"]
[null,null,null,null,null,null,null,null,null,null,"Sep"]
[null,null,null,null,null,null,null,null,null,null,"Oct"]
[null,null,null,null,null,null,null,null,null,null,"Nov"]
[null,null,null,null,null,null,null,null,null,null,"Dec"]
[null,null,null,null,null,null,null,null,null,null,"Annual",{"$f":"AVERAGE(L22:L33)","v":{"$error":"#DIV/0!"}},{"$f":"MAX(M22:M33)","v":0},{"$f":"AVERAGE(N22:N33)","v":{"$error":"#DIV/0!"}},{"$f":"MAX(O22:O33)","v":0}]
[]
[null,null,null,null,null,null,null,null,null,{"$f":"+A6","v":2021},"mg/Nm3","Monthly 1/2 hourly mean","Monthly 1/2 hourly maximum","Monthly daily mean","Monthly daily maximum"]
[null,null,null,null,null,null,null,null,null,"A3","Jan"]
[null,null,null,null,null,null,null,null,null,null,"Feb"]
[null,null,2021,null,null,null,null,null,null,null,"Mar"]
[null,null,null,null,null,null,null,null,null,null,"Apr"]
[null,null,null,null,null,null,null,null,null,null,"May"]
[null,null,null,null,null,null,null,null,null,null,"Jun"]
[null,null,null,null,null,null,null,null,null,null,"Jul"]
[null,null,null,null,null,null,null,null,null,null,"Aug"]
[null,null,null,null,null,null,null,null,null,null,"Sep"]
[null,null,null,null,null,null,null,null,null,null,"Oct"]
[null,null,null,null,null,null,null,null,null,null,"Nov"]
["Comments :",null,null,null,null,null,null,null,null,null,"Dec"]
[null,null,null,null,null,null,null,null,null,null,"Annual",{"$f":"AVERAGE(L37:L48)","v":{"$error":"#DIV/0!"}},{"$f":"MAX(M37:M48)","v":0},{"$f":"AVERAGE(N37:N48)","v":{"$error":"#DIV/0!"}},{"$f":"MAX(O37:O48)","v":0}]
[]
[null,null,null,null,null,null,null,null,null,{"$f":"+A6","v":2021},"mg/Nm3","Monthly 1/2 hourly mean","Monthly 1/2 hourly maximum","Monthly daily mean","Monthly daily maximum"]
[null,null,null,null,null,null,null,null,null,"A4","Jan"]
[null,null,"2022-01-31",null,null,null,null,null,null,null,"Feb"]
[null,null,null,null,null,null,null,null,null,null,"Mar"]
[null,null,null,null,null,null,null,null,null,null,"Apr"]
[null,null,null,null,null,null,null,null,null,null,"May"]
[null,null,null,null,null,null,null,null,null,null,"Jun"]
[null,null,null,null,null,null,null,null,null,null,"Jul"]
[null,null,null,null,null,null,null,null,null,null,"Aug"]
[null,null,null,null,null,null,null,null,null,null,"Sep"]
[null,null,null,null,null,null,null,null,null,null,"Oct"]
[null,null,null,null,null,null,null,null,null,null,"Nov"]
[null,null,null,null,null,null,null,null,null,null,"Dec"]
[null,null,null,null,null,null,null,null,null,null,"Annual",{"$f":"AVERAGE(L52:L63)","v":{"$error":"#DIV/0!"}},{"$f":"MAX(M52:M63)","v":0},{"$f":"AVERAGE(N52:N63)","v":{"$error":"#DIV/0!"}},{"$f":"MAX(O52:O63)","v":0}]
[]
[null,null,null,null,null,null,null,null,null,{"$f":"+A6","v":2021},"mg/Nm3","Monthly 1/2 hourly mean","Monthly 1/2 hourly maximum","Monthly daily mean","Monthly daily maximum"]
[null,null,null,null,null,null,null,null,null,"A5","Jan"]
[null,null,null,null,null,null,null,null,null,null,"Feb"]
[null,null,null,null,null,null,null,null,null,null,"Mar"]
[null,null,null,null,null,null,null,null,null,null,"Apr"]
[null,null,null,null,null,null,null,null,null,null,"May"]
[null,null,null,null,null,null,null,null,null,null,"Jun"]
[null,null,null,null,null,null,null,null,null,null,"Jul"]
[null,null,null,null,null,null,null,null,null,null,"Aug"]
[null,null,null,null,null,null,null,null,null,null,"Sep"]
[null,null,null,null,null,null,null,null,null,null,"Oct"]
[null,null,null,null,null,null,null,null,null,null,"Nov"]
[null,null,null,null,null,null,null,null,null,null,"Dec"]
[null,null,null,null,null,null,null,null,null,null,"Annual",{"$f":"AVERAGE(L67:L78)","v":{"$error":"#DIV/0!"}},{"$f":"MAX(M67:M78)","v":0},{"$f":"AVERAGE(N67:N78)","v":{"$error":"#DIV/0!"}},{"$f":"MAX(O67:O78)","v":0}]

{"sheet":"CO 95% 10 min","index":20,"n_rows":79,"n_cols":19,"rows_kept":79,"cut":false,"hidden":false,"merged":[[3,18,7,20],[9,18,11,20],[12,18,15,20],[66,10,78,10],[4,1,4,4],[4,5,4,7],[4,10,4,16],[6,10,18,10],[21,10,33,10],[36,10,48,10],[47,0,47,7],[48,0,51,7],[51,10,63,10]]}
[{"$f":"+'Cover Page'!$B$29","v":"Annual Performance Report 2022"},null,null,null,{"$f":"+'Cover Page'!$B$33","v":"The Coventry And Solihull Waste Disposal Company Ltd"}]
[]
["Monitoring of Carbon Monoxide (10-minute avg)",null,null,null,"Whole Installation",null,null,"See  Notes in Cell S3",null,{"$f":"+A3","v":"Monitoring of Carbon Monoxide (10-minute avg)"},null,null,null,null,"Per Combustion Line",null,"Notes:",null,"Notes:"]
[null,null,null,null,null,null,null,null,null,null,null,null,null,null,null,null,null,null,"User to add logic to complete Whole installation, Table A5:H18. From the data in Per Combustion Line, Table K6:Q79, subject to No. of lines installed"]
["mg/Nm3","10-minute Reference Periods",null,null,null,"Daily Reference Periods"]
[{"$f":"+'Cover Page'!C39","v":2021},"95%ile 10-min avg CO ELV","95%ile 10-min avg maximum","Monthly CO 10-min avg mean","10-min avg maximum","Daily CO ELV","Monthly daily mean","Highest daily maximum",null,null,{"$f":"+A6","v":2021},"mg/Nm3","95%ile 10-min avg maximum","Monthly CO 10-min avg mean","10-min avg maximum","Monthly daily mean","Monthly daily maximum"]
["Jan",150,77.3,24.8,428.23,50,24.88,45.63,null,null,"A1","Jan",75.34,32.56,188.61,32.520000000000003,43.85]
["Feb",150,46.16,15.45,351.57,50,15.68,28.2,null,null,null,"Feb",46.16,23.64,154.44,23.8,28.2]
["Mar",150,47.68,12.65,593.61,50,12.58,29.7,null,null,null,"Mar",47.68,21.1,384.46,21.47,29.7,null,"Whole Installation table A5:H18:"]
["Apr",150,45.16,9.4499999999999993,516.23,50,9.48,20.32,null,null,null,"Apr",40.43,14.44,127.58,14.42,20.32,null,"Mean: for 10-min and daily periods use average of all operational combustion lines."]
["May",150,76.02,11.28,399.57,50,11.34,20.92,null,null,null,"May",76.02,15.26,237.92,15.26,20.190000000000001]
["Jun",150,38.29,10.33,524.08000000000004,50,10.35,20.43,null,null,null,"Jun",38.29,15.66,294.41000000000003,15.7,20.43]
["Jul",150,89.97,20.6,401.86,50,20.68,39.590000000000003,null,null,null,"Jul",57.09,27.87,335.88,27.77,39.590000000000003,null,"Maximum: for 10-min and daily periods use the highest of all operational combustion lines in any month."]
["Aug",150,57.48,24.29,244.17,50,24.24,37.020000000000003,null,null,null,"Aug",57.48,30.79,244.17,30.71,37.020000000000003]
["Sep",150,64.25,23.61,706.2,50,23.51,45.61,null,null,null,"Sep",64.25,30.51,312.3,30.66,45.61]
["Oct",150,65.63,21.85,275.39999999999998,50,22.22,33.68,null,null,null,"Oct",65.63,26.52,269.81,27.03,33.68]
["Nov",150,64.89,27.85,305.72000000000003,50,27.83,44.04,null,null,null,"Nov",64.89,33.71,256.77,33.71,44.04]
["Dec",150,63.03,28.36,488.72,50,28.16,40.840000000000003,null,null,null,"Dec",61.72,34.56,488.72,34.520000000000003,40.840000000000003]
[null,null,null,null,null,null,null,null,null,null,null,"Annual",{"$f":"MAX(M7:M18)","v":76.02},{"$f":"AVERAGE(N7:N18)","v":25.551666666666666},{"$f":"MAX(O7:O18)","v":488.72},{"$f":"AVERAGE(P7:P18)","v":25.630833333333332},{"$f":"MAX(Q7:Q18)","v":45.61}]
[]
[null,null,null,null,null,null,null,null,null,null,{"$f":"+A6","v":2021},"mg/Nm3","95%ile 10-min avg maximum","Monthly CO 10-min avg mean","10-min avg maximum","Monthly daily mean","Monthly daily maximum"]
[null,null,null,null,null,null,null,null,null,null,"A2","Jan",77.3,28.8,428.23,28.92,45.63]
[null,null,null,null,null,null,null,null,null,null,null,"Feb",38.770000000000003,13.77,182.64,13.9,19.440000000000001]
[null,null,null,null,null,null,null,null,null,null,null,"Mar",41.76,11.24,151.12,11.27,16.670000000000002]
[null,null,null,null,null,null,null,null,null,null,null,"Apr",27.73,8.65,204.22,8.3800000000000008,13.41]
[null,null,null,null,null,null,null,null,null,null,null,"May",41.13,12.39,84.7,12.39,20.92]
[null,null,null,null,null,null,null,null,null,null,null,"Jun",35.93,11,147.38999999999999,10.99,19.690000000000001]
[null,null,null,null,null,null,null,null,null,null,null,"Jul",58.62,18.05,175.76,18.12,23.03]
[null,"Annual Performance Report 2022",null,null,null,null,null,null,null,null,null,"Aug",45.7,21.51,174.75,21.37,29.97]
[null,null,null,null,null,null,null,null,null,null,null,"Sep",58.7,20.91,241.01,20.89,24.73]
[null,null,null,null,null,null,null,null,null,null,null,"Oct",49.8,19.670000000000002,181.49,20.260000000000002,26.24]
[null,null,null,null,null,null,null,null,null,null,null,"Nov",45.66,21.94,164.23,21.94,26.59]
[null,null,null,null,null,null,null,null,null,null,null,"Dec",47.89,22.91,356.25,22.87,28.38]
[null,null,null,null,null,null,null,null,null,null,null,"Annual",{"$f":"MAX(M22:M33)","v":77.3},{"$f":"AVERAGE(N22:N33)","v":17.57},{"$f":"MAX(O22:O33)","v":428.23},{"$f":"AVERAGE(P22:P33)","v":17.608333333333334},{"$f":"MAX(Q22:Q33)","v":45.63}]
[]
[null,null,null,null,null,null,null,null,null,null,{"$f":"+A6","v":2021},"mg/Nm3","95%ile 10-min avg maximum","Monthly CO 10-min avg mean","10-min avg maximum","Monthly daily mean","Monthly daily maximum"]
[null,null,null,null,null,null,null,null,null,null,"A3","Jan",46.63,14.15,273,14.2,23.68]
[null,null,null,null,null,null,null,null,null,null,null,"Feb",37.369999999999997,8.9600000000000009,351.57,9.1,20.100000000000001]
[null,null,2021,null,null,null,null,null,null,null,null,"Mar",40.340000000000003,8.18,593.61,8.18,15.53]
[null,null,null,null,null,null,null,null,null,null,null,"Apr",45.16,5,516.23,5.0599999999999996,16.62]
[null,null,null,null,null,null,null,null,null,null,null,"May",28.25,4.32,399.57,4.33,12.25]
[null,null,null,null,null,null,null,null,null,null,null,"Jun",26.54,3.06,524.08000000000004,2.68,12.45]
[null,null,null,null,null,null,null,null,null,null,null,"Jul",89.97,15.76,401.86,16.02,34.869999999999997]
[null,null,null,null,null,null,null,null,null,null,null,"Aug",42.88,20.41,214.05,20.36,27.23]
[null,null,null,null,null,null,null,null,null,null,null,"Sep",46.24,19.079999999999998,706.2,18.989999999999998,27.8]
[null,null,null,null,null,null,null,null,null,null,null,"Oct",44.9,21.96,275.39999999999998,21.78,26.43]
[null,null,null,null,null,null,null,null,null,null,null,"Nov",61.6,27.95,305.72000000000003,27.84,36.72]
["Comments :",null,null,null,null,null,null,null,null,null,null,"Dec",63.03,27.21,352.46,26.85,33.58]
["Environment Agency explanatory note: The 10-minute average ELV is based on the “95th percentile”. In this case this means that 95% of the 10 minute averages in the relevant 24-hour period (i.e. 137) must be below 150 mg/Nm3, and 5% (i.e. 7) are allowed to be any value above 150 mg/Nm3. Whilst we expect operators to minimise CO emissions at all times, it is perfectly acceptable for the value of the maximum 10-minute average to be above 150 mg/Nm3, provided the 95th percentile ELV has been met for that period. ",null,null,null,null,null,null,null,null,null,null,"Annual",{"$f":"MAX(M37:M48)","v":89.97},{"$f":"AVERAGE(N37:N48)","v":14.67},{"$f":"MAX(O37:O48)","v":706.2},{"$f":"AVERAGE(P37:P48)","v":14.615833333333333},{"$f":"MAX(Q37:Q48)","v":36.72}]
[]
[null,null,null,null,null,null,null,null,null,null,{"$f":"+A6","v":2021},"mg/Nm3","95%ile 10-min avg maximum","Monthly CO 10-min avg mean","10-min avg maximum","Monthly daily mean","Monthly daily maximum"]
[null,null,null,null,null,null,null,null,null,null,"A4","Jan"]
[null,null,"2022-01-31",null,null,null,null,null,null,null,null,"Feb"]
[null,null,null,null,null,null,null,null,null,null,null,"Mar"]
[null,null,null,null,null,null,null,null,null,null,null,"Apr"]
[null,null,null,null,null,null,null,null,null,null,null,"May"]
[null,null,null,null,null,null,null,null,null,null,null,"Jun"]
[null,null,null,null,null,null,null,null,null,null,null,"Jul"]
[null,null,null,null,null,null,null,null,null,null,null,"Aug"]
[null,null,null,null,null,null,null,null,null,null,null,"Sep"]
[null,null,null,null,null,null,null,null,null,null,null,"Oct"]
[null,null,null,null,null,null,null,null,null,null,null,"Nov"]
[null,null,null,null,null,null,null,null,null,null,null,"Dec"]
[null,null,null,null,null,null,null,null,null,null,null,"Annual",{"$f":"AVERAGE(M52:M63)","v":{"$error":"#DIV/0!"}},null,{"$f":"MAX(O52:O63)","v":0},{"$f":"AVERAGE(P52:P63)","v":{"$error":"#DIV/0!"}},{"$f":"MAX(Q52:Q63)","v":0}]
[]
[null,null,null,null,null,null,null,null,null,null,{"$f":"+A6","v":2021},"mg/Nm3","95%ile 10-min avg maximum","Monthly CO 10-min avg mean","10-min avg maximum","Monthly daily mean","Monthly daily maximum"]
[null,null,null,null,null,null,null,null,null,null,"A5","Jan"]
[null,null,null,null,null,null,null,null,null,null,null,"Feb"]
[null,null,null,null,null,null,null,null,null,null,null,"Mar"]
[null,null,null,null,null,null,null,null,null,null,null,"Apr"]
[null,null,null,null,null,null,null,null,null,null,null,"May"]
[null,null,null,null,null,null,null,null,null,null,null,"Jun"]
[null,null,null,null,null,null,null,null,null,null,null,"Jul"]
[null,null,null,null,null,null,null,null,null,null,null,"Aug"]
[null,null,null,null,null,null,null,null,null,null,null,"Sep"]
[null,null,null,null,null,null,null,null,null,null,null,"Oct"]
[null,null,null,null,null,null,null,null,null,null,null,"Nov"]
[null,null,null,null,null,null,null,null,null,null,null,"Dec"]
[null,null,null,null,null,null,null,null,null,null,null,"Annual",{"$f":"AVERAGE(M67:M78)","v":{"$error":"#DIV/0!"}},null,{"$f":"MAX(O67:O78)","v":0},{"$f":"AVERAGE(P67:P78)","v":{"$error":"#DIV/0!"}},{"$f":"MAX(Q67:Q78)","v":0}]

{"sheet":"NH3","index":21,"n_rows":79,"n_cols":17,"rows_kept":79,"cut":false,"hidden":false,"merged":[[3,16,7,18],[9,16,11,18],[12,16,15,18],[66,9,78,9],[4,1,4,3],[4,4,4,6],[4,9,4,14],[6,9,18,9],[21,9,33,9],[36,9,48,9],[47,0,47,6],[48,0,51,6],[51,9,63,9]]}
[{"$f":"+'Cover Page'!$B$29","v":"Annual Performance Report 2022"},null,null,null,{"$f":"+'Cover Page'!$B$33","v":"The Coventry And Solihull Waste Disposal Company Ltd"}]
[]
["Monitoring of Ammnonia emissions ",null,null,"Whole Installation",null,null,"See  Notes in Cell Q3",null,null,{"$f":"+A3","v":"Monitoring of Ammnonia emissions "},null,null,null,"Per Combustion Line",null,null,"Notes:"]
[null,null,null,null,null,null,null,null,null,null,null,null,null,null,null,null,"User to add logic to complete Whole installation, Table A5:G18. From the data in Per Combustion Line, Table J6:O79, subject to No. of lines installed"]
["mg/Nm3","1/2 Hourly Reference Periods",null,null,"Daily Reference Periods"]
[{"$f":"+'Cover Page'!C39","v":2021},"1/2 hourly NH3 ELV","Monthly 1/2 hourly mean","Highest 1/2 hourly maximum","Daily NH3 ELV","Monthly daily mean","Highest daily maximum",null,null,{"$f":"+A6","v":2021},"mg/Nm3","Monthly 1/2 hourly mean","Monthly 1/2 hourly maximum","Monthly daily mean","Monthly daily maximum"]
["Jan",null,3.48,31.96,null,3.42,12.6,null,null,"A1","Jan",2.66,21.26,2.66,6.27]
["Feb",null,2.95,17.57,null,2.98,10.54,null,null,null,"Feb",0.51,4.1900000000000004,0.52,1.51]
["Mar",null,1.06,10.31,null,1.0900000000000001,5.34,null,null,null,"Mar",0.85,2.62,0.85,0.98,null,"Whole Installation table A5:G18:"]
["Apr",null,0.94,18.75,null,0.85,4.79,null,null,null,"Apr",1.03,5.62,1.04,3.36,null,"Mean: for 1/2 hourly and daily periods calculate mean of values across all operational combustion lines for the month"]
["May",null,1.71,9.83,null,1.74,6.22,null,null,null,"May",0.4,4.92,0.4,1.6]
["Jun",null,1.9,14.48,null,1.94,8.14,null,null,null,"Jun",0.47,2.5499999999999998,0.47,0.95]
["Jul",null,2.91,15.92,null,2.89,8.4,null,null,null,"Jul",1.51,15.92,1.51,2.68,null,"Maximum: for 1/2 hourly and daily periods use the highest value across all operational combustion lines for the month"]
["Aug",null,5.45,23.36,null,5.42,11.39,null,null,null,"Aug",6.88,23.36,6.82,11.39]
["Sep",null,6.38,25.12,null,6.36,10.99,null,null,null,"Sep",8.6999999999999993,25.12,8.7100000000000009,10.99]
["Oct",null,4.8899999999999997,23.4,null,4.9400000000000004,14.47,null,null,null,"Oct",8.35,23.4,8.92,14.47]
["Nov",null,6.55,29.19,null,6.58,19.57,null,null,null,"Nov",11.85,29.19,11.86,19.57]
["Dec",null,9.6199999999999992,32.26,null,9.64,18.09,null,null,null,"Dec",11.59,24.4,11.73,14.24]
[null,null,null,null,null,null,null,null,null,null,"Annual",{"$f":"AVERAGE(L7:L18)","v":4.5666666666666664},{"$f":"MAX(M7:M18)","v":29.19},{"$f":"AVERAGE(N7:N18)","v":4.6241666666666665},{"$f":"MAX(O7:O18)","v":19.57}]
[]
[null,null,null,null,null,null,null,null,null,{"$f":"+A6","v":2021},"mg/Nm3","Monthly 1/2 hourly mean","Monthly 1/2 hourly maximum","Monthly daily mean","Monthly daily maximum"]
[null,null,null,null,null,null,null,null,null,"A2","Jan",7.49,31.96,7.49,12.6]
[null,null,null,null,null,null,null,null,null,null,"Feb",6.06,14.21,6.06,9.2899999999999991]
[null,null,null,null,null,null,null,null,null,null,"Mar",3.47,10.31,3.5,5.34]
[null,null,null,null,null,null,null,null,null,null,"Apr",2.8,10.01,2.72,4.79]
[null,null,null,null,null,null,null,null,null,null,"May",3.43,9.83,3.43,6.22]
[null,null,null,null,null,null,null,null,null,null,"Jun",3.54,14.48,3.54,8.14]
[null,null,null,null,null,null,null,null,null,null,"Jul",2.95,12.92,2.88,4.12]
[null,"Annual Performance Report 2022",null,null,null,null,null,null,null,null,"Aug",5.51,17.37,5.51,10.130000000000001]
[null,null,null,null,null,null,null,null,null,null,"Sep",4.29,10.11,4.34,6.23]
[null,null,null,null,null,null,null,null,null,null,"Oct",3.43,10.31,3.49,5.43]
[null,null,null,null,null,null,null,null,null,null,"Nov",3.53,12.63,3.53,7.91]
[null,null,null,null,null,null,null,null,null,null,"Dec",10.93,32.26,10.92,18.09]
[null,null,null,null,null,null,null,null,null,null,"Annual",{"$f":"AVERAGE(L22:L33)","v":4.7858333333333336},{"$f":"MAX(M22:M33)","v":32.26},{"$f":"AVERAGE(N22:N33)","v":4.7841666666666667},{"$f":"MAX(O22:O33)","v":18.09}]
[]
[null,null,null,null,null,null,null,null,null,{"$f":"+A6","v":2021},"mg/Nm3","Monthly 1/2 hourly mean","Monthly 1/2 hourly maximum","Monthly daily mean","Monthly daily maximum"]
[null,null,null,null,null,null,null,null,null,"A3","Jan",1.37,14.81,1.39,4.29]
[null,null,null,null,null,null,null,null,null,null,"Feb",2.25,17.57,2.36,10.54]
[null,null,2021,null,null,null,null,null,null,null,"Mar",-0.34,6.05,-0.36,2.16]
[null,null,null,null,null,null,null,null,null,null,"Apr",-0.43,18.75,-0.43,0.84]
[null,null,null,null,null,null,null,null,null,null,"May",1.1599999999999999,9.7899999999999991,1.23,5.2]
[null,null,null,null,null,null,null,null,null,null,"Jun",2.2999999999999998,11.66,2.35,5.36]
[null,null,null,null,null,null,null,null,null,null,"Jul",4.1900000000000004,15.8,4.1900000000000004,8.4]
[null,null,null,null,null,null,null,null,null,null,"Aug",3.97,16.440000000000001,3.97,6.45]
[null,null,null,null,null,null,null,null,null,null,"Sep",6,23.68,6.04,10.02]
[null,null,null,null,null,null,null,null,null,null,"Oct",4.83,14.25,4.8099999999999996,5.76]
[null,null,null,null,null,null,null,null,null,null,"Nov",3.93,13.3,3.92,5.49]
["Comments :",null,null,null,null,null,null,null,null,null,"Dec",2.1800000000000002,11.88,2.1800000000000002,3.51]
["An indicated ELV value of zero in the table above means that no ammonia limit is set in the permit.  ",null,null,null,null,null,null,null,null,null,"Annual",{"$f":"AVERAGE(L37:L48)","v":2.6174999999999997},{"$f":"MAX(M37:M48)","v":23.68},{"$f":"AVERAGE(N37:N48)","v":2.6374999999999997},{"$f":"MAX(O37:O48)","v":10.54}]
[]
[null,null,null,null,null,null,null,null,null,{"$f":"+A6","v":2021},"mg/Nm3","Monthly 1/2 hourly mean","Monthly 1/2 hourly maximum","Monthly daily mean","Monthly daily maximum"]
[null,null,null,null,null,null,null,null,null,"A4","Jan"]
[null,null,"2022-01-31",null,null,null,null,null,null,null,"Feb"]
[null,null,null,null,null,null,null,null,null,null,"Mar"]
[null,null,null,null,null,null,null,null,null,null,"Apr"]
[null,null,null,null,null,null,null,null,null,null,"May"]
[null,null,null,null,null,null,null,null,null,null,"Jun"]
[null,null,null,null,null,null,null,null,null,null,"Jul"]
[null,null,null,null,null,null,null,null,null,null,"Aug"]
[null,null,null,null,null,null,null,null,null,null,"Sep"]
[null,null,null,null,null,null,null,null,null,null,"Oct"]
[null,null,null,null,null,null,null,null,null,null,"Nov"]
[null,null,null,null,null,null,null,null,null,null,"Dec"]
[null,null,null,null,null,null,null,null,null,null,"Annual",{"$f":"AVERAGE(L52:L63)","v":{"$error":"#DIV/0!"}},{"$f":"MAX(M52:M63)","v":0},{"$f":"AVERAGE(N52:N63)","v":{"$error":"#DIV/0!"}},{"$f":"MAX(O52:O63)","v":0}]
[]
[null,null,null,null,null,null,null,null,null,{"$f":"+A6","v":2021},"mg/Nm3","Monthly 1/2 hourly mean","Monthly 1/2 hourly maximum","Monthly daily mean","Monthly daily maximum"]
[null,null,null,null,null,null,null,null,null,"A5","Jan"]
[null,null,null,null,null,null,null,null,null,null,"Feb"]
[null,null,null,null,null,null,null,null,null,null,"Mar"]
[null,null,null,null,null,null,null,null,null,null,"Apr"]
[null,null,null,null,null,null,null,null,null,null,"May"]
[null,null,null,null,null,null,null,null,null,null,"Jun"]
[null,null,null,null,null,null,null,null,null,null,"Jul"]
[null,null,null,null,null,null,null,null,null,null,"Aug"]
[null,null,null,null,null,null,null,null,null,null,"Sep"]
[null,null,null,null,null,null,null,null,null,null,"Oct"]
[null,null,null,null,null,null,null,null,null,null,"Nov"]
[null,null,null,null,null,null,null,null,null,null,"Dec"]
[null,null,null,null,null,null,null,null,null,null,"Annual",{"$f":"AVERAGE(L67:L78)","v":{"$error":"#DIV/0!"}},{"$f":"MAX(M67:M78)","v":0},{"$f":"AVERAGE(N67:N78)","v":{"$error":"#DIV/0!"}},{"$f":"MAX(O67:O78)","v":0}]